Body,Body name,Date,Transaction number,Amount,Non recoverable VAT included in amount,Supplier name,Supplier ID,Expense area,Fund type,Expense type,Category description
http://statistics.data.gov.uk/search?search=E07000114,Thanet District Council,03/02/2017,423876,18592.24,,Bidwells Llp,BID001,Corporate Resources and S151,Balance Sheet,Other Land And Buildings-Hra,Consultancy
http://statistics.data.gov.uk/search?search=E07000114,Thanet District Council,03/02/2017,424671,5000.00,,Commercial Services Trading Ltd,COM048,Corporate Resources and S151,Revenue,Services,Various Cats-Public Sector
http://statistics.data.gov.uk/search?search=E07000114,Thanet District Council,03/02/2017,423892,134398.37,,Dcb (Kent) Ltd,DCB001,Corporate Resources and S151,Balance Sheet,Repairs And Mtce Holding A/C,Construction-Repair And Maint
http://statistics.data.gov.uk/search?search=E07000114,Thanet District Council,03/02/2017,423893,9408.33,,Dcb (Kent) Ltd,DCB001,Corporate Resources and S151,Balance Sheet,Repairs And Mtce Holding A/C,Construction-Repair And Maint
http://statistics.data.gov.uk/search?search=E07000114,Thanet District Council,03/02/2017,423911,3580.50,,Dcb (Kent) Ltd,DCB001,Corporate Resources and S151,Balance Sheet,Repairs And Mtce Holding A/C,Construction-Repair And Maint
http://statistics.data.gov.uk/search?search=E07000114,Thanet District Council,03/02/2017,425080,360.00,,Idox Software  Limited,IDO001,Community Services,Revenue,Communications & Computing,ICT
http://statistics.data.gov.uk/search?search=E07000114,Thanet District Council,03/02/2017,425081,360.00,,Idox Software  Limited,IDO001,Community Services,Revenue,Communications & Computing,ICT
http://statistics.data.gov.uk/search?search=E07000114,Thanet District Council,03/02/2017,423782,510.94,,Morgan Jones Ltd,MOR001,Chief Executive,Revenue,Agency Staff,Human Resources
http://statistics.data.gov.uk/search?search=E07000114,Thanet District Council,03/02/2017,425345,960.00,,REDACTED PERSONAL DATE,N/A,Corporate Resources and S151,Balance Sheet,Capital Exp-Non Council Assets,Grants
http://statistics.data.gov.uk/search?search=E07000114,Thanet District Council,03/02/2017,423418,265.00,,Venn Group Limited,VEN004,Corporate Resources and S151,Revenue,Services,Human Resources
http://statistics.data.gov.uk/search?search=E07000114,Thanet District Council,03/02/2017,423419,715.50,,Venn Group Limited,VEN004,Corporate Resources and S151,Revenue,Services,Human Resources
http://statistics.data.gov.uk/search?search=E07000114,Thanet District Council,03/02/2017,423952,1378.00,,Venn Group Limited,VEN004,Corporate Resources and S151,Revenue,Services,Human Resources
http://statistics.data.gov.uk/search?search=E07000114,Thanet District Council,03/02/2017,424420,821.50,,Venn Group Limited,VEN004,Corporate Resources and S151,Revenue,Services,Human Resources
http://statistics.data.gov.uk/search?search=E07000114,Thanet District Council,07/02/2017,425451,2478.60,,10 Dalby Square (Management) Ltd,10D001,Corporate Resources and S151,Balance Sheet,Capital Exp-Non Council Assets,Grants
http://statistics.data.gov.uk/search?search=E07000114,Thanet District Council,07/02/2017,425452,3717.90,,10 Dalby Square (Management) Ltd,10D001,Corporate Resources and S151,Balance Sheet,Capital Exp-Non Council Assets,Grants
http://statistics.data.gov.uk/search?search=E07000114,Thanet District Council,07/02/2017,425453,4957.20,,10 Dalby Square (Management) Ltd,10D001,Corporate Resources and S151,Balance Sheet,Capital Exp-Non Council Assets,Grants
http://statistics.data.gov.uk/search?search=E07000114,Thanet District Council,07/02/2017,424883,12037.79,,Advanced Business Solutions,COA011,Corporate Resources and S151,Revenue,Communications & Computing,ICT
http://statistics.data.gov.uk/search?search=E07000114,Thanet District Council,07/02/2017,424418,265040.00,,Aebi Schmidt Uk Limited,AEB002,Corporate Resources and S151,Balance Sheet,Plant And Equipment,Vehicle Management
http://statistics.data.gov.uk/search?search=E07000114,Thanet District Council,07/02/2017,425262,708.33,,Albion Fencing&Construction Kent Ltd,ALB005,Corporate Resources and S151,Balance Sheet,Other Land And Buildings-Hra,Building Construction Material
http://statistics.data.gov.uk/search?search=E07000114,Thanet District Council,07/02/2017,425102,5140.00,,All About Asbestos Limited,ALL044,Community Services,Revenue,Services,Environmental Services
http://statistics.data.gov.uk/search?search=E07000114,Thanet District Council,07/02/2017,424593,240.00,,Andrews & Elliott Limited,AND001,Operational Services,Revenue,"Repairs,  Alter & Mtce - Build",Cemetery And Crematorium
http://statistics.data.gov.uk/search?search=E07000114,Thanet District Council,07/02/2017,424417,520.50,,Ate (Uk) Limited,ANG014,Operational Services,Revenue,Direct Transport Costs,Vehicle Management
http://statistics.data.gov.uk/search?search=E07000114,Thanet District Council,07/02/2017,425255,1500.00,,Audio Trails Limited,AUD003,Community Services,Revenue,Services,ICT
http://statistics.data.gov.uk/search?search=E07000114,Thanet District Council,07/02/2017,425236,310.00,,Bp Drains Ltd,BPD001,Corporate Governance,Revenue,"Repairs,  Alter & Mtce - Build",Construction-Repair And Maint
http://statistics.data.gov.uk/search?search=E07000114,Thanet District Council,07/02/2017,425462,980.40,,Bramling Construction Ltd,BRA020,Corporate Resources and S151,Balance Sheet,Capital Exp-Non Council Assets,Grants
http://statistics.data.gov.uk/search?search=E07000114,Thanet District Council,07/02/2017,424886,338.00,,Bridge Security Cctv Ltd,BRI039,Corporate Governance,Revenue,Services,Facilities And Management Serv
http://statistics.data.gov.uk/search?search=E07000114,Thanet District Council,07/02/2017,425456,1860.00,,Broadstairs Gas Services Ltd,BRO083,Corporate Resources and S151,Balance Sheet,Capital Exp-Non Council Assets,Grants
http://statistics.data.gov.uk/search?search=E07000114,Thanet District Council,07/02/2017,425411,2300.00,,Cabinet Office,CAB004,Corporate Resources and S151,Revenue,Services,Financial Services
http://statistics.data.gov.uk/search?search=E07000114,Thanet District Council,07/02/2017,424594,380.60,,Canon (Uk) Ltd,CAN021,Corporate Governance,Revenue,"Print, Stat And Gen Off Exps",Facilities And Management Serv
http://statistics.data.gov.uk/search?search=E07000114,Thanet District Council,07/02/2017,424611,286.01,,Canon (Uk) Ltd,CAN021,Corporate Governance,Revenue,"Equip, Furniture And Materials",Facilities And Management Serv
http://statistics.data.gov.uk/search?search=E07000114,Thanet District Council,07/02/2017,424278,875.00,,City Electrical Factors Ltd,CIT001,Operational Services,Revenue,"Repairs,  Alter & Mtce - Build",Building Construction Material
http://statistics.data.gov.uk/search?search=E07000114,Thanet District Council,07/02/2017,424716,3330.00,,Civica Uk Ltd,CIV003,East Kent Shared Services,Revenue,Communications & Computing,ICT
http://statistics.data.gov.uk/search?search=E07000114,Thanet District Council,07/02/2017,424995,450.00,,Cobalt Telephone Technologies Ltd,COB002,Operational Services,Revenue,"Equip, Furniture And Materials",ICT
http://statistics.data.gov.uk/search?search=E07000114,Thanet District Council,07/02/2017,424850,865.40,,Computerland Uk Limited,COM045,Community Services,Revenue,"Equip, Furniture And Materials",ICT
http://statistics.data.gov.uk/search?search=E07000114,Thanet District Council,07/02/2017,425082,980.00,,Connaught Hotel Dover Limited,CON046,Community Services,Revenue,Services,Housing Management
http://statistics.data.gov.uk/search?search=E07000114,Thanet District Council,07/02/2017,425083,420.00,,Connaught Hotel Dover Limited,CON046,Community Services,Revenue,Services,Housing Management
http://statistics.data.gov.uk/search?search=E07000114,Thanet District Council,07/02/2017,425014,1427.58,,Coombs (Canterbury) Ltd,COO033,Community Services,Revenue,Services,Construction-Repair And Maint
http://statistics.data.gov.uk/search?search=E07000114,Thanet District Council,07/02/2017,424413,561.86,,Dennis Eagle Ltd,DEN005,Operational Services,Revenue,Direct Transport Costs,Vehicle Management
http://statistics.data.gov.uk/search?search=E07000114,Thanet District Council,07/02/2017,424532,460.86,,Dennis Eagle Ltd,DEN005,Operational Services,Revenue,Direct Transport Costs,Vehicle Management
http://statistics.data.gov.uk/search?search=E07000114,Thanet District Council,07/02/2017,424693,886.72,,Dennis Eagle Ltd,DEN005,Operational Services,Revenue,Direct Transport Costs,Vehicle Management
http://statistics.data.gov.uk/search?search=E07000114,Thanet District Council,07/02/2017,424719,524.97,,Dennis Eagle Ltd,DEN005,Operational Services,Revenue,Direct Transport Costs,Vehicle Management
http://statistics.data.gov.uk/search?search=E07000114,Thanet District Council,07/02/2017,424865,643.92,,Dha Planning Limited,DHA002,Community Services,Revenue,Services,Consultancy
http://statistics.data.gov.uk/search?search=E07000114,Thanet District Council,07/02/2017,425445,5700.00,,Dolphin Lifts Kent,DOL003,Corporate Resources and S151,Balance Sheet,Capital Exp-Non Council Assets,Grants
http://statistics.data.gov.uk/search?search=E07000114,Thanet District Council,07/02/2017,425464,4500.00,,Dolphin Lifts Kent,DOL003,Corporate Resources and S151,Balance Sheet,Capital Exp-Non Council Assets,Grants
http://statistics.data.gov.uk/search?search=E07000114,Thanet District Council,07/02/2017,425442,1800.00,,Dr Alexander Marshall,MAR100,Operational Services,Revenue,Services,Cemetery And Crematorium
http://statistics.data.gov.uk/search?search=E07000114,Thanet District Council,07/02/2017,425443,1875.00,,Dr R K Chhabra,CHH001,Operational Services,Revenue,Services,Cemetery And Crematorium
http://statistics.data.gov.uk/search?search=E07000114,Thanet District Council,07/02/2017,424292,1336.91,,East Kent Housing Ltd,EKH002,Corporate Resources and S151,Balance Sheet,Council Dwellings,Housing Management
http://statistics.data.gov.uk/search?search=E07000114,Thanet District Council,07/02/2017,424813,1300.00,,Edge Enviro Services Ltd,EDG001,Operational Services,Revenue,Services,Human Resources
http://statistics.data.gov.uk/search?search=E07000114,Thanet District Council,07/02/2017,425444,640.00,,Family Mosaic Housing,FAM001,Corporate Resources and S151,Balance Sheet,Capital Exp-Non Council Assets,Housing Management
http://statistics.data.gov.uk/search?search=E07000114,Thanet District Council,07/02/2017,425446,1444.62,,Family Mosaic Housing,FAM001,Corporate Resources and S151,Balance Sheet,Capital Exp-Non Council Assets,Housing Management
http://statistics.data.gov.uk/search?search=E07000114,Thanet District Council,07/02/2017,425449,324.88,,Family Mosaic Housing,FAM001,Corporate Resources and S151,Balance Sheet,Capital Exp-Non Council Assets,Housing Management
http://statistics.data.gov.uk/search?search=E07000114,Thanet District Council,07/02/2017,425459,1239.89,,Family Mosaic Housing,FAM001,Corporate Resources and S151,Balance Sheet,Capital Exp-Non Council Assets,Housing Management
http://statistics.data.gov.uk/search?search=E07000114,Thanet District Council,07/02/2017,425461,2364.08,,Family Mosaic Housing,FAM001,Corporate Resources and S151,Balance Sheet,Capital Exp-Non Council Assets,Housing Management
http://statistics.data.gov.uk/search?search=E07000114,Thanet District Council,07/02/2017,425463,348.45,,Family Mosaic Housing,FAM001,Corporate Resources and S151,Balance Sheet,Capital Exp-Non Council Assets,Housing Management
http://statistics.data.gov.uk/search?search=E07000114,Thanet District Council,07/02/2017,425465,1523.49,,Family Mosaic Housing,FAM001,Corporate Resources and S151,Balance Sheet,Capital Exp-Non Council Assets,Housing Management
http://statistics.data.gov.uk/search?search=E07000114,Thanet District Council,07/02/2017,425103,605.32,,Farrer Barnes Limited,FAR012,Corporate Resources and S151,Revenue,Agency Staff,Human Resources
http://statistics.data.gov.uk/search?search=E07000114,Thanet District Council,07/02/2017,425104,604.95,,Farrer Barnes Limited,FAR012,Corporate Resources and S151,Revenue,Agency Staff,Human Resources
http://statistics.data.gov.uk/search?search=E07000114,Thanet District Council,07/02/2017,425231,666.66,,Hastings Borough Council,HAS002,Community Services,Revenue,Services,Various Cats-Public Sector
http://statistics.data.gov.uk/search?search=E07000114,Thanet District Council,07/02/2017,424414,3000.00,,Hays Specialist Recruitment Ltd,HAY020,Corporate Resources and S151,Revenue,Services,Human Resources
http://statistics.data.gov.uk/search?search=E07000114,Thanet District Council,07/02/2017,424915,1219.15,,Hays Specialist Recruitment Ltd,HAY020,Corporate Resources and S151,Balance Sheet,Council Dwellings,Human Resources
http://statistics.data.gov.uk/search?search=E07000114,Thanet District Council,07/02/2017,425434,3167.96,,Heath Lambert Limited (Client Money),HEA011,Corporate Resources and S151,Balance Sheet,Insurance Holding Account,Financial Services
http://statistics.data.gov.uk/search?search=E07000114,Thanet District Council,07/02/2017,424550,650.00,,Hi Way Services Ltd,HIW002,Operational Services,Revenue,"Repairs,  Alter & Mtce - Build",Highway Equipment And Material
http://statistics.data.gov.uk/search?search=E07000114,Thanet District Council,07/02/2017,425059,1025.00,,Hi Way Services Ltd,HIW002,Operational Services,Revenue,"Repairs,  Alter & Mtce - Build",Highway Equipment And Material
http://statistics.data.gov.uk/search?search=E07000114,Thanet District Council,07/02/2017,424997,700.00,,Holt & Wotton Ltd,HOL001,Corporate Resources and S151,Balance Sheet,Council Dwellings,Building Construction Material
http://statistics.data.gov.uk/search?search=E07000114,Thanet District Council,07/02/2017,424998,262.25,,Holt & Wotton Ltd,HOL001,Corporate Resources and S151,Balance Sheet,Council Dwellings,Building Construction Material
http://statistics.data.gov.uk/search?search=E07000114,Thanet District Council,07/02/2017,425454,3208.80,,Howe Heating & Plumbing,HOW019,Corporate Resources and S151,Balance Sheet,Capital Exp-Non Council Assets,Grants
http://statistics.data.gov.uk/search?search=E07000114,Thanet District Council,07/02/2017,424443,219.45,,Hr Go (Kent) Ltd,HRG001,Corporate Governance,Revenue,Agency Staff,Human Resources
http://statistics.data.gov.uk/search?search=E07000114,Thanet District Council,07/02/2017,424926,219.45,,Hr Go (Kent) Ltd,HRG001,Corporate Governance,Revenue,Agency Staff,Human Resources
http://statistics.data.gov.uk/search?search=E07000114,Thanet District Council,07/02/2017,424927,460.25,,Hr Go (Kent) Ltd,HRG001,Operational Services,Revenue,Agency Staff,Human Resources
http://statistics.data.gov.uk/search?search=E07000114,Thanet District Council,07/02/2017,424931,529.47,,Hr Go (Kent) Ltd,HRG001,Community Services,Revenue,Agency Staff,Human Resources
http://statistics.data.gov.uk/search?search=E07000114,Thanet District Council,07/02/2017,425447,2849.18,,Hubbard & Houghton Construction Ltd,HUB003,Corporate Resources and S151,Balance Sheet,Capital Exp-Non Council Assets,Grants
http://statistics.data.gov.uk/search?search=E07000114,Thanet District Council,07/02/2017,425460,7397.29,,Hubbard & Houghton Construction Ltd,HUB003,Corporate Resources and S151,Balance Sheet,Capital Exp-Non Council Assets,Grants
http://statistics.data.gov.uk/search?search=E07000114,Thanet District Council,07/02/2017,425093,360.00,,Idox Software  Limited,IDO001,Community Services,Revenue,Communications & Computing,ICT
http://statistics.data.gov.uk/search?search=E07000114,Thanet District Council,07/02/2017,425095,360.00,,Idox Software  Limited,IDO001,Community Services,Revenue,Communications & Computing,ICT
http://statistics.data.gov.uk/search?search=E07000114,Thanet District Council,07/02/2017,424881,400.11,,Insight Direct (Uk) Ltd,INS013,East Kent Shared Services,Revenue,Communications & Computing,ICT
http://statistics.data.gov.uk/search?search=E07000114,Thanet District Council,07/02/2017,424691,1242.00,,Intermarine Ltd,INT008,Operational Services,Revenue,"Repairs,  Alter & Mtce - Build",Maritime Services
http://statistics.data.gov.uk/search?search=E07000114,Thanet District Council,07/02/2017,424299,3645.00,,J C White Geomatics Ltd,WHI019,Operational Services,Revenue,"Repairs,  Alter & Mtce - Build",Consultancy
http://statistics.data.gov.uk/search?search=E07000114,Thanet District Council,07/02/2017,425003,365.00,,J Redpath Buchanan & Co Ltd,RED001,Corporate Governance,Revenue,Services,Building Construction Material
http://statistics.data.gov.uk/search?search=E07000114,Thanet District Council,07/02/2017,424817,321.50,,Keltic Ltd,KEL007,Operational Services,Revenue,"Clothes, Uniforms & Laundry",Clothing
http://statistics.data.gov.uk/search?search=E07000114,Thanet District Council,07/02/2017,425448,14145.70,,Kent County Council,KCC002,Corporate Resources and S151,Balance Sheet,Capital Exp-Non Council Assets,Various Cats-Public Sector
http://statistics.data.gov.uk/search?search=E07000114,Thanet District Council,07/02/2017,425450,4470.51,,Kent County Council,KCC002,Corporate Resources and S151,Balance Sheet,Capital Exp-Non Council Assets,Various Cats-Public Sector
http://statistics.data.gov.uk/search?search=E07000114,Thanet District Council,07/02/2017,425293,220.79,,Kent County Council (Kcs),KCC003,Operational Services,Revenue,"Repairs,  Alter & Mtce - Build",Facilities And Management Serv
http://statistics.data.gov.uk/search?search=E07000114,Thanet District Council,07/02/2017,425119,240.00,,Km Media Group Limited,KMM001,Corporate Governance,Revenue,Miscellaneous Expenses,Facilities And Management Serv
http://statistics.data.gov.uk/search?search=E07000114,Thanet District Council,07/02/2017,424554,581.70,,Loomis Uk Ltd,LOO002,Operational Services,Revenue,Services,Financial Services
http://statistics.data.gov.uk/search?search=E07000114,Thanet District Council,07/02/2017,424861,458.88,,Lyreco Uk Limited,LYR001,Corporate Governance,Revenue,"Print, Stat And Gen Off Exps",Stationery
http://statistics.data.gov.uk/search?search=E07000114,Thanet District Council,07/02/2017,425106,440.00,,Lyreco Uk Limited,LYR001,Corporate Governance,Revenue,"Print, Stat And Gen Off Exps",Stationery
http://statistics.data.gov.uk/search?search=E07000114,Thanet District Council,07/02/2017,424564,6834.64,,M & R Refurbishments Limited,MRR001,Corporate Resources and S151,Balance Sheet,Repairs And Mtce Holding A/C,Construction-Repair And Maint
http://statistics.data.gov.uk/search?search=E07000114,Thanet District Council,07/02/2017,424486,547.41,,Mears Ltd,MEA003,Operational Services,Revenue,"Repairs,  Alter & Mtce - Build",Construction-Repair And Maint
http://statistics.data.gov.uk/search?search=E07000114,Thanet District Council,07/02/2017,424605,59.00,,Med Clean South Ltd,MED015,Corporate Resources and S151,Balance Sheet,Plant And Equipment,Cleaning And Janitorial
http://statistics.data.gov.uk/search?search=E07000114,Thanet District Council,07/02/2017,424605,768.20,,Med Clean South Ltd,MED015,Operational Services,Revenue,"Repairs,  Alter & Mtce - Build",Cleaning And Janitorial
http://statistics.data.gov.uk/search?search=E07000114,Thanet District Council,07/02/2017,424041,5475.00,,Michael Page Int Recruitment Ltd,PAG008,Corporate Resources and S151,Revenue,Services,Human Resources
http://statistics.data.gov.uk/search?search=E07000114,Thanet District Council,07/02/2017,425085,3675.00,,Michael Page Int Recruitment Ltd,PAG008,Corporate Resources and S151,Revenue,Services,Human Resources
http://statistics.data.gov.uk/search?search=E07000114,Thanet District Council,07/02/2017,424493,510.94,,Morgan Jones Ltd,MOR001,Chief Executive,Revenue,Agency Staff,Human Resources
http://statistics.data.gov.uk/search?search=E07000114,Thanet District Council,07/02/2017,424497,351.56,,Morgan Jones Ltd,MOR001,Corporate Governance,Revenue,Agency Staff,Human Resources
http://statistics.data.gov.uk/search?search=E07000114,Thanet District Council,07/02/2017,424821,640.84,,Morgan Jones Ltd,MOR001,Chief Executive,Revenue,Agency Staff,Human Resources
http://statistics.data.gov.uk/search?search=E07000114,Thanet District Council,07/02/2017,424859,557.26,,Morgan Jones Ltd,MOR001,Corporate Governance,Revenue,Agency Staff,Human Resources
http://statistics.data.gov.uk/search?search=E07000114,Thanet District Council,07/02/2017,424325,362.25,,Municipal Mutual Insurance Limited,MUN010,Corporate Resources and S151,Balance Sheet,Provisions-Future Settlement,Financial Services
http://statistics.data.gov.uk/search?search=E07000114,Thanet District Council,07/02/2017,424810,450.00,,North Kent Architecture Centre Ltd,NKA001,Community Services,Revenue,Training,Consultancy
http://statistics.data.gov.uk/search?search=E07000114,Thanet District Council,07/02/2017,424651,418.06,,Ocs Group Uk Ltd T/A Fountains,OCS005,Operational Services,Revenue,Cleaning & Domestic Supplies,Cleaning And Janitorial
http://statistics.data.gov.uk/search?search=E07000114,Thanet District Council,07/02/2017,424652,886.71,,Ocs Group Uk Ltd T/A Fountains,OCS005,Corporate Governance,Revenue,Cleaning & Domestic Supplies,Cleaning And Janitorial
http://statistics.data.gov.uk/search?search=E07000114,Thanet District Council,07/02/2017,424653,18296.90,,Ocs Group Uk Ltd T/A Fountains,OCS005,Operational Services,Revenue,Cleaning & Domestic Supplies,Cleaning And Janitorial
http://statistics.data.gov.uk/search?search=E07000114,Thanet District Council,07/02/2017,424654,532.63,,Ocs Group Uk Ltd T/A Fountains,OCS005,Operational Services,Revenue,Fixtures & Fittings,Cleaning And Janitorial
http://statistics.data.gov.uk/search?search=E07000114,Thanet District Council,07/02/2017,424655,948.61,,Ocs Group Uk Ltd T/A Fountains,OCS005,Operational Services,Revenue,Fixtures & Fittings,Cleaning And Janitorial
http://statistics.data.gov.uk/search?search=E07000114,Thanet District Council,07/02/2017,424656,948.61,,Ocs Group Uk Ltd T/A Fountains,OCS005,Operational Services,Revenue,Fixtures & Fittings,Cleaning And Janitorial
http://statistics.data.gov.uk/search?search=E07000114,Thanet District Council,07/02/2017,424412,869.85,,Ohuk Limited,OHU001,Operational Services,Revenue,Agency Staff,Human Resources
http://statistics.data.gov.uk/search?search=E07000114,Thanet District Council,07/02/2017,424844,2120.00,,Oscar Associates (Uk) Limited,OSC001,East Kent Shared Services,Revenue,Agency Staff,ICT
http://statistics.data.gov.uk/search?search=E07000114,Thanet District Council,07/02/2017,424530,365.42,,Parkeon Limited,PAR063,Operational Services,Revenue,"Equip, Furniture And Materials",Street And Traffic Management
http://statistics.data.gov.uk/search?search=E07000114,Thanet District Council,07/02/2017,424531,1705.60,,Patrol,PAT004,Operational Services,Revenue,Services,Street And Traffic Management
http://statistics.data.gov.uk/search?search=E07000114,Thanet District Council,07/02/2017,424648,3825.00,,Paul Shadarevian,SHA031,Corporate Governance,Revenue,Services,Human Resources
http://statistics.data.gov.uk/search?search=E07000114,Thanet District Council,07/02/2017,424649,1125.00,,Paul Shadarevian,SHA031,Corporate Resources and S151,Balance Sheet,Other Land And Buildings-Hra,Human Resources
http://statistics.data.gov.uk/search?search=E07000114,Thanet District Council,07/02/2017,425114,4304.50,,Planning Solutions Consulting Ltd,PLA029,Community Services,Revenue,Services,Consultancy
http://statistics.data.gov.uk/search?search=E07000114,Thanet District Council,07/02/2017,424669,280.00,,Portcullis Gate Automation Limited,POR021,Operational Services,Revenue,"Equip, Furniture And Materials",Maritime Services
http://statistics.data.gov.uk/search?search=E07000114,Thanet District Council,07/02/2017,424664,236.25,,Posturite Ltd,POS010,Corporate Resources and S151,Revenue,"Equip, Furniture And Materials",Health And Safety
http://statistics.data.gov.uk/search?search=E07000114,Thanet District Council,07/02/2017,424667,454.00,,Profile Security Services Limited,PRO018,Operational Services,Revenue,Services,Facilities And Management Serv
http://statistics.data.gov.uk/search?search=E07000114,Thanet District Council,07/02/2017,424410,220.00,,Puls Global Ltd,PUL006,Operational Services,Revenue,"Equip, Furniture And Materials",Facilities And Management Serv
http://statistics.data.gov.uk/search?search=E07000114,Thanet District Council,07/02/2017,424665,8498.25,,Rand Associates Consultancy Ser Ltd,RAN006,Community Services,Revenue,Services,Construction-Repair And Maint
http://statistics.data.gov.uk/search?search=E07000114,Thanet District Council,07/02/2017,425115,1200.00,,Red Bullet Web Design Limited,RED023,Corporate Resources and S151,Revenue,Services,ICT
http://statistics.data.gov.uk/search?search=E07000114,Thanet District Council,07/02/2017,425020,235.00,,Rics,RIC007,Corporate Governance,Revenue,Grants & Subscriptions,Financial Services
http://statistics.data.gov.uk/search?search=E07000114,Thanet District Council,07/02/2017,424425,3075.00,,Riverside Environmental Services Ltd,RIV006,Operational Services,Revenue,"Repairs,  Alter & Mtce - Build",Health And Safety
http://statistics.data.gov.uk/search?search=E07000114,Thanet District Council,07/02/2017,424320,1550.00,,Safety & Management Solutions Ltd,SAF013,Operational Services,Revenue,Training,Health And Safety
http://statistics.data.gov.uk/search?search=E07000114,Thanet District Council,07/02/2017,424979,3037.50,,Securitas Security Services (Uk) Ltd,SEC019,Corporate Governance,Revenue,Services,Facilities And Management Serv
http://statistics.data.gov.uk/search?search=E07000114,Thanet District Council,07/02/2017,424835,580.00,,Southeast Retail Ltd,SOU030,Community Services,Revenue,Services,Housing Management
http://statistics.data.gov.uk/search?search=E07000114,Thanet District Council,07/02/2017,425122,490.00,,Southeast Retail Ltd,SOU030,Community Services,Revenue,Services,Housing Management
http://statistics.data.gov.uk/search?search=E07000114,Thanet District Council,07/02/2017,424327,2101.69,,Swale Heating Ltd,SWA006,Corporate Resources and S151,Balance Sheet,Repairs And Mtce Holding A/C,Building Construction Material
http://statistics.data.gov.uk/search?search=E07000114,Thanet District Council,07/02/2017,424876,3354.17,,The Glenwood Hotel,GLE007,Community Services,Revenue,Services,Housing Management
http://statistics.data.gov.uk/search?search=E07000114,Thanet District Council,07/02/2017,424877,2887.51,,The Glenwood Hotel,GLE007,Community Services,Revenue,Services,Housing Management
http://statistics.data.gov.uk/search?search=E07000114,Thanet District Council,07/02/2017,424878,2970.86,,The Glenwood Hotel,GLE007,Community Services,Revenue,Services,Housing Management
http://statistics.data.gov.uk/search?search=E07000114,Thanet District Council,07/02/2017,424879,1858.32,,The Glenwood Hotel,GLE007,Community Services,Revenue,Services,Housing Management
http://statistics.data.gov.uk/search?search=E07000114,Thanet District Council,07/02/2017,424901,11267.03,,Town & Country Cleaners Ltd,TOW002,Corporate Resources and S151,Balance Sheet,Repairs And Mtce Holding A/C,Cleaning And Janitorial
http://statistics.data.gov.uk/search?search=E07000114,Thanet District Council,07/02/2017,424870,982.93,,Trafalgar Cleaning Equipment Ltd,TRA033,Operational Services,Revenue,Direct Transport Costs,Cleaning And Janitorial
http://statistics.data.gov.uk/search?search=E07000114,Thanet District Council,07/02/2017,425435,451505.88,,Zurich Insurance Plc,ZUR007,Corporate Resources and S151,Balance Sheet,Insurance Holding Account,Financial Services
http://statistics.data.gov.uk/search?search=E07000114,Thanet District Council,07/02/2017,425436,20366.17,,Zurich Insurance Plc,ZUR007,Corporate Resources and S151,Balance Sheet,Insurance Holding Account,Financial Services
http://statistics.data.gov.uk/search?search=E07000114,Thanet District Council,07/02/2017,425437,7039.07,,Zurich Insurance Plc,ZUR007,Corporate Resources and S151,Balance Sheet,Insurance Holding Account,Financial Services
http://statistics.data.gov.uk/search?search=E07000114,Thanet District Council,07/02/2017,425438,3703.22,,Zurich Insurance Plc,ZUR007,Corporate Resources and S151,Balance Sheet,Insurance Holding Account,Financial Services
http://statistics.data.gov.uk/search?search=E07000114,Thanet District Council,07/02/2017,425439,13116.64,,Zurich Insurance Plc,ZUR007,Corporate Resources and S151,Balance Sheet,Insurance Holding Account,Financial Services
http://statistics.data.gov.uk/search?search=E07000114,Thanet District Council,07/02/2017,425440,4848.06,,Zurich Insurance Plc,ZUR007,Corporate Resources and S151,Balance Sheet,Insurance Holding Account,Financial Services
http://statistics.data.gov.uk/search?search=E07000114,Thanet District Council,07/02/2017,425441,52413.60,,Zurich Insurance Plc,ZUR007,Corporate Resources and S151,Balance Sheet,Insurance Holding Account,Financial Services
http://statistics.data.gov.uk/search?search=E07000114,Thanet District Council,08/02/2017,424722,100.00,,Anthony Swandale,SWA023,Community Services,Revenue,Services,Arts And Leisure Services
http://statistics.data.gov.uk/search?search=E07000114,Thanet District Council,08/02/2017,425288,225.00,,Anthony Swandale,SWA023,Community Services,Revenue,Services,Arts And Leisure Services
http://statistics.data.gov.uk/search?search=E07000114,Thanet District Council,08/02/2017,425283,350.00,,Boys & Maughan,BOY012,Community Services,Revenue,Services,Legal Services
http://statistics.data.gov.uk/search?search=E07000114,Thanet District Council,08/02/2017,425709,300.00,,Boys & Maughan,BOY001,Community Services,Revenue,Services,Various Categories
http://statistics.data.gov.uk/search?search=E07000114,Thanet District Council,08/02/2017,425240,50212.00,,Callcredit Limited,CAL009,East Kent Shared Services,Revenue,Communications & Computing,Financial Services
http://statistics.data.gov.uk/search?search=E07000114,Thanet District Council,08/02/2017,424620,11100.00,,Canterbury City Council,CAN004,Operational Services,Revenue,Services,Various Cats-Public Sector
http://statistics.data.gov.uk/search?search=E07000114,Thanet District Council,08/02/2017,424621,11265.00,,Canterbury City Council,CAN004,Operational Services,Revenue,Services,Various Cats-Public Sector
http://statistics.data.gov.uk/search?search=E07000114,Thanet District Council,08/02/2017,425419,582.65,,Ccs Media Limited,CCS003,East Kent Shared Services,Revenue,Communications & Computing,ICT
http://statistics.data.gov.uk/search?search=E07000114,Thanet District Council,08/02/2017,425422,298.90,,Ccs Media Limited,CCS003,East Kent Shared Services,Revenue,"Equip, Furniture And Materials",ICT
http://statistics.data.gov.uk/search?search=E07000114,Thanet District Council,08/02/2017,425428,310.00,,Ccs Media Limited,CCS003,Corporate Governance,Revenue,Communications & Computing,ICT
http://statistics.data.gov.uk/search?search=E07000114,Thanet District Council,08/02/2017,425429,930.00,,Ccs Media Limited,CCS003,East Kent Shared Services,Revenue,Communications & Computing,ICT
http://statistics.data.gov.uk/search?search=E07000114,Thanet District Council,08/02/2017,424661,1136.59,,Channel Commercials Plc,CCO001,Operational Services,Revenue,Direct Transport Costs,Vehicle Management
http://statistics.data.gov.uk/search?search=E07000114,Thanet District Council,08/02/2017,424686,210.01,,Channel Commercials Plc,CCO001,Operational Services,Revenue,Direct Transport Costs,Vehicle Management
http://statistics.data.gov.uk/search?search=E07000114,Thanet District Council,08/02/2017,424540,5094.81,,Commercial Services Trading Ltd,COM048,Operational Services,Revenue,Cont Hire & Operating Lease,Various Cats-Public Sector
http://statistics.data.gov.uk/search?search=E07000114,Thanet District Council,08/02/2017,425708,3165.40,,Gl Hearn Limited,GLH001,Community Services,Revenue,Services,Consultancy
http://statistics.data.gov.uk/search?search=E07000114,Thanet District Council,08/02/2017,424438,1153.27,,Hr Go (Kent) Ltd,HRG001,Operational Services,Revenue,Agency Staff,Human Resources
http://statistics.data.gov.uk/search?search=E07000114,Thanet District Council,08/02/2017,424439,1091.50,,Hr Go (Kent) Ltd,HRG001,Operational Services,Revenue,Agency Staff,Human Resources
http://statistics.data.gov.uk/search?search=E07000114,Thanet District Council,08/02/2017,424442,451.87,,Hr Go (Kent) Ltd,HRG001,Operational Services,Revenue,Agency Staff,Human Resources
http://statistics.data.gov.uk/search?search=E07000114,Thanet District Council,08/02/2017,424444,1204.72,,Hr Go (Kent) Ltd,HRG001,Operational Services,Revenue,Agency Staff,Human Resources
http://statistics.data.gov.uk/search?search=E07000114,Thanet District Council,08/02/2017,424549,8477.23,,Hr Go (Kent) Ltd,HRG001,Operational Services,Revenue,Agency Staff,Human Resources
http://statistics.data.gov.uk/search?search=E07000114,Thanet District Council,08/02/2017,424551,1633.78,,Hr Go (Kent) Ltd,HRG001,Operational Services,Revenue,Agency Staff,Human Resources
http://statistics.data.gov.uk/search?search=E07000114,Thanet District Council,08/02/2017,424666,276.76,,Hr Go (Kent) Ltd,HRG001,Operational Services,Revenue,Agency Staff,Human Resources
http://statistics.data.gov.uk/search?search=E07000114,Thanet District Council,08/02/2017,425706,239.17,,Independent Vetcare Limited,IND015,Operational Services,Revenue,Services,Environmental Services
http://statistics.data.gov.uk/search?search=E07000114,Thanet District Council,08/02/2017,424416,131.52,,Lyreco Uk Limited,LYR001,Community Services,Revenue,"Equip, Furniture And Materials",Stationery
http://statistics.data.gov.uk/search?search=E07000114,Thanet District Council,08/02/2017,424416,64.05,,Lyreco Uk Limited,LYR001,Operational Services,Revenue,"Print, Stat And Gen Off Exps",Stationery
http://statistics.data.gov.uk/search?search=E07000114,Thanet District Council,08/02/2017,424416,68.01,,Lyreco Uk Limited,LYR001,East Kent Shared Services,Revenue,"Equip, Furniture And Materials",Stationery
http://statistics.data.gov.uk/search?search=E07000114,Thanet District Council,08/02/2017,424275,97706.27,,Mears Ltd,MEA003,Community Services,Revenue,"Repairs,  Alter & Mtce - Build",Construction-Repair And Maint
http://statistics.data.gov.uk/search?search=E07000114,Thanet District Council,08/02/2017,424490,1805.71,,Mears Ltd,MEA003,Community Services,Revenue,"Repairs,  Alter & Mtce - Build",Construction-Repair And Maint
http://statistics.data.gov.uk/search?search=E07000114,Thanet District Council,08/02/2017,424491,2766.33,,Mears Ltd,MEA003,Community Services,Revenue,"Repairs,  Alter & Mtce - Build",Construction-Repair And Maint
http://statistics.data.gov.uk/search?search=E07000114,Thanet District Council,08/02/2017,424496,582.75,,Morgan Jones Ltd,MOR001,Community Services,Revenue,Agency Staff,Human Resources
http://statistics.data.gov.uk/search?search=E07000114,Thanet District Council,08/02/2017,424819,582.75,,Morgan Jones Ltd,MOR001,Community Services,Revenue,Agency Staff,Human Resources
http://statistics.data.gov.uk/search?search=E07000114,Thanet District Council,08/02/2017,425245,582.75,,Morgan Jones Ltd,MOR001,Community Services,Revenue,Agency Staff,Human Resources
http://statistics.data.gov.uk/search?search=E07000114,Thanet District Council,08/02/2017,425284,2673.35,,National Express Ltd,NAT010,Community Services,Revenue,Services,Agency Payments
http://statistics.data.gov.uk/search?search=E07000114,Thanet District Council,08/02/2017,424657,948.61,,Ocs Group Uk Ltd T/A Fountains,OCS005,Operational Services,Revenue,Fixtures & Fittings,Cleaning And Janitorial
http://statistics.data.gov.uk/search?search=E07000114,Thanet District Council,08/02/2017,424659,948.61,,Ocs Group Uk Ltd T/A Fountains,OCS005,Operational Services,Revenue,Fixtures & Fittings,Cleaning And Janitorial
http://statistics.data.gov.uk/search?search=E07000114,Thanet District Council,08/02/2017,423183,1000.00,,S2a Media Limited,S2A001,Community Services,Revenue,Services,Stationery
http://statistics.data.gov.uk/search?search=E07000114,Thanet District Council,08/02/2017,424305,1516.48,,Tourism Works,TOU007,Community Services,Revenue,Services,Facilities And Management Serv
http://statistics.data.gov.uk/search?search=E07000114,Thanet District Council,08/02/2017,423583,1122.50,,Universeal (Uk) Limited,UNI039,Operational Services,Revenue,Communications & Computing,Environmental Services
http://statistics.data.gov.uk/search?search=E07000114,Thanet District Council,08/02/2017,424675,3657.93,,Westbrook Construction (Margate) Ltd,WES021,Operational Services,Revenue,"Repairs,  Alter & Mtce - Build",Various Categories
http://statistics.data.gov.uk/search?search=E07000114,Thanet District Council,10/02/2017,424095,535.00,,Faithorn Farrell Timms Llp,FAI007,Corporate Resources and S151,Balance Sheet,Council Dwellings,Consultancy
http://statistics.data.gov.uk/search?search=E07000114,Thanet District Council,10/02/2017,425254,2220.00,,Faithorn Farrell Timms Llp,FAI007,Corporate Resources and S151,Balance Sheet,Council Dwellings,Consultancy
http://statistics.data.gov.uk/search?search=E07000114,Thanet District Council,14/02/2017,424980,209.00,,Amenity Horticultural Serv Ltd,AME001,Operational Services,Revenue,"Equip, Furniture And Materials",Horticultural
http://statistics.data.gov.uk/search?search=E07000114,Thanet District Council,14/02/2017,424980,1630.90,,Amenity Horticultural Serv Ltd,AME001,Operational Services,Revenue,"Repairs,  Alter & Mtce - Build",Horticultural
http://statistics.data.gov.uk/search?search=E07000114,Thanet District Council,14/02/2017,425022,2027.90,,Amenity Horticultural Serv Ltd,AME001,Operational Services,Revenue,"Repairs,  Alter & Mtce - Build",Horticultural
http://statistics.data.gov.uk/search?search=E07000114,Thanet District Council,14/02/2017,425289,382.50,,Andy Morris,MOR028,Community Services,Revenue,Services,Arts And Leisure Services
http://statistics.data.gov.uk/search?search=E07000114,Thanet District Council,14/02/2017,425290,300.00,,Andy Morris,MOR028,Community Services,Revenue,Services,Arts And Leisure Services
http://statistics.data.gov.uk/search?search=E07000114,Thanet District Council,14/02/2017,425932,2435.00,,Ascendit Lifts Ltd,ASC001,Corporate Resources and S151,Balance Sheet,Capital Exp-Non Council Assets,Grants
http://statistics.data.gov.uk/search?search=E07000114,Thanet District Council,14/02/2017,425934,4930.00,,Ascendit Lifts Ltd,ASC001,Corporate Resources and S151,Balance Sheet,Capital Exp-Non Council Assets,Grants
http://statistics.data.gov.uk/search?search=E07000114,Thanet District Council,14/02/2017,425252,444.40,,Ate (Uk) Limited,ANG014,Operational Services,Revenue,Direct Transport Costs,Vehicle Management
http://statistics.data.gov.uk/search?search=E07000114,Thanet District Council,14/02/2017,425936,6481.30,,Bramling Construction Ltd,BRA020,Corporate Resources and S151,Balance Sheet,Capital Exp-Non Council Assets,Grants
http://statistics.data.gov.uk/search?search=E07000114,Thanet District Council,14/02/2017,425940,5323.26,,Bramling Construction Ltd,BRA020,Corporate Resources and S151,Balance Sheet,Capital Exp-Non Council Assets,Grants
http://statistics.data.gov.uk/search?search=E07000114,Thanet District Council,14/02/2017,424981,5063.00,,British Ports Association,BPA002,Operational Services,Revenue,Grants & Subscriptions,Human Resources
http://statistics.data.gov.uk/search?search=E07000114,Thanet District Council,14/02/2017,425854,754.00,,Bt Payment Services Ltd,BTE003,Corporate Resources and S151,Revenue,Communications & Computing,ICT
http://statistics.data.gov.uk/search?search=E07000114,Thanet District Council,14/02/2017,425858,722.00,,Bt Payment Services Ltd,BTE003,Operational Services,Revenue,Communications & Computing,ICT
http://statistics.data.gov.uk/search?search=E07000114,Thanet District Council,14/02/2017,425874,737.00,,Bt Payment Services Ltd,BTE003,Corporate Resources and S151,Revenue,Communications & Computing,ICT
http://statistics.data.gov.uk/search?search=E07000114,Thanet District Council,14/02/2017,425287,19878.33,,Canterbury City Council,CAN004,East Kent Shared Services,Revenue,Grants & Subscriptions,Various Cats-Public Sector
http://statistics.data.gov.uk/search?search=E07000114,Thanet District Council,14/02/2017,424921,875.00,,Child Poverty Action Group,CPA001,East Kent Shared Services,Revenue,"Print, Stat And Gen Off Exps",Financial Services
http://statistics.data.gov.uk/search?search=E07000114,Thanet District Council,14/02/2017,424986,215.76,,City Electrical Factors Ltd,CIT001,Operational Services,Revenue,"Repairs,  Alter & Mtce - Build",Building Construction Material
http://statistics.data.gov.uk/search?search=E07000114,Thanet District Council,14/02/2017,424848,47312.59,,Dcb (Kent) Ltd,DCB001,Corporate Resources and S151,Balance Sheet,Repairs And Mtce Holding A/C,Construction-Repair And Maint
http://statistics.data.gov.uk/search?search=E07000114,Thanet District Council,14/02/2017,424849,1671.39,,Dcb (Kent) Ltd,DCB001,Corporate Resources and S151,Balance Sheet,Repairs And Mtce Holding A/C,Construction-Repair And Maint
http://statistics.data.gov.uk/search?search=E07000114,Thanet District Council,14/02/2017,425070,1270.50,,Dcb (Kent) Ltd,DCB001,Corporate Resources and S151,Balance Sheet,Repairs And Mtce Holding A/C,Construction-Repair And Maint
http://statistics.data.gov.uk/search?search=E07000114,Thanet District Council,14/02/2017,424984,273.72,,Dennis Eagle Ltd,DEN005,Operational Services,Revenue,Direct Transport Costs,Vehicle Management
http://statistics.data.gov.uk/search?search=E07000114,Thanet District Council,14/02/2017,425941,2550.00,,Dolphin Lifts Kent,DOL003,Corporate Resources and S151,Balance Sheet,Capital Exp-Non Council Assets,Grants
http://statistics.data.gov.uk/search?search=E07000114,Thanet District Council,14/02/2017,424337,6565.02,,Dover District Council,DOV001,Corporate Resources and S151,Revenue,Employee Related Schemes,Various Cats-Public Sector
http://statistics.data.gov.uk/search?search=E07000114,Thanet District Council,14/02/2017,425358,368.71,,E Saunders Margate Ltd,SAU001,Operational Services,Revenue,"Repairs,  Alter & Mtce - Build",Construction-Repair And Maint
http://statistics.data.gov.uk/search?search=E07000114,Thanet District Council,14/02/2017,425844,423.26,,E.On,EON001,Community Services,Revenue,Energy Costs,Utilities
http://statistics.data.gov.uk/search?search=E07000114,Thanet District Council,14/02/2017,424973,689.00,,East Kent Hose,EKH004,Operational Services,Revenue,Direct Transport Costs,Vehicle Management
http://statistics.data.gov.uk/search?search=E07000114,Thanet District Council,14/02/2017,425931,928.55,,Family Mosaic Housing,FAM001,Corporate Resources and S151,Balance Sheet,Capital Exp-Non Council Assets,Housing Management
http://statistics.data.gov.uk/search?search=E07000114,Thanet District Council,14/02/2017,425935,1135.48,,Family Mosaic Housing,FAM001,Corporate Resources and S151,Balance Sheet,Capital Exp-Non Council Assets,Housing Management
http://statistics.data.gov.uk/search?search=E07000114,Thanet District Council,14/02/2017,425939,777.76,,Family Mosaic Housing,FAM001,Corporate Resources and S151,Balance Sheet,Capital Exp-Non Council Assets,Housing Management
http://statistics.data.gov.uk/search?search=E07000114,Thanet District Council,14/02/2017,425784,605.32,,Farrer Barnes Limited,FAR012,Corporate Resources and S151,Revenue,Agency Staff,Human Resources
http://statistics.data.gov.uk/search?search=E07000114,Thanet District Council,14/02/2017,425785,604.95,,Farrer Barnes Limited,FAR012,Corporate Resources and S151,Revenue,Agency Staff,Human Resources
http://statistics.data.gov.uk/search?search=E07000114,Thanet District Council,14/02/2017,425281,9874.96,,G & W Gardner Building Cont Ltd,GAR001,Corporate Resources and S151,Balance Sheet,Other Land And Buildings-Hra,Construction-Repair And Maint
http://statistics.data.gov.uk/search?search=E07000114,Thanet District Council,14/02/2017,425024,318.33,,Glasdon Uk Ltd,GLA001,Operational Services,Revenue,"Equip, Furniture And Materials",Environmental Services
http://statistics.data.gov.uk/search?search=E07000114,Thanet District Council,14/02/2017,425123,316.43,,Grummant (H & P Services) Ltd,GRU001,Operational Services,Revenue,"Repairs,  Alter & Mtce - Build",Construction-Repair And Maint
http://statistics.data.gov.uk/search?search=E07000114,Thanet District Council,14/02/2017,425058,371.77,,H E Municipal Engineering Ltd,HEM003,Operational Services,Revenue,Direct Transport Costs,Vehicle Management
http://statistics.data.gov.uk/search?search=E07000114,Thanet District Council,14/02/2017,425532,1202.50,,Hays Specialist Recruitment Ltd,HAY020,Corporate Resources and S151,Balance Sheet,Council Dwellings,Human Resources
http://statistics.data.gov.uk/search?search=E07000114,Thanet District Council,14/02/2017,425533,3000.00,,Hays Specialist Recruitment Ltd,HAY020,Corporate Resources and S151,Revenue,Services,Human Resources
http://statistics.data.gov.uk/search?search=E07000114,Thanet District Council,14/02/2017,425023,750.00,,Hbinfo Limited,HBI001,East Kent Shared Services,Revenue,Expenses,Financial Services
http://statistics.data.gov.uk/search?search=E07000114,Thanet District Council,14/02/2017,425263,799.00,,Hbinfo Limited,HBI001,East Kent Shared Services,Revenue,Grants & Subscriptions,Financial Services
http://statistics.data.gov.uk/search?search=E07000114,Thanet District Council,14/02/2017,425109,17840.71,,Hipperson Builders (M & E) Limited,HIP002,Corporate Resources and S151,Balance Sheet,Council Dwellings,Construction-Repair And Maint
http://statistics.data.gov.uk/search?search=E07000114,Thanet District Council,14/02/2017,424924,808.71,,Hr Go (Kent) Ltd,HRG001,Operational Services,Revenue,Agency Staff,Human Resources
http://statistics.data.gov.uk/search?search=E07000114,Thanet District Council,14/02/2017,424925,451.87,,Hr Go (Kent) Ltd,HRG001,Operational Services,Revenue,Agency Staff,Human Resources
http://statistics.data.gov.uk/search?search=E07000114,Thanet District Council,14/02/2017,424928,1091.50,,Hr Go (Kent) Ltd,HRG001,Operational Services,Revenue,Agency Staff,Human Resources
http://statistics.data.gov.uk/search?search=E07000114,Thanet District Council,14/02/2017,424929,525.77,,Hr Go (Kent) Ltd,HRG001,Operational Services,Revenue,Agency Staff,Human Resources
http://statistics.data.gov.uk/search?search=E07000114,Thanet District Council,14/02/2017,424930,1091.50,,Hr Go (Kent) Ltd,HRG001,Operational Services,Revenue,Agency Staff,Human Resources
http://statistics.data.gov.uk/search?search=E07000114,Thanet District Council,14/02/2017,424976,10345.08,,Hr Go (Kent) Ltd,HRG001,Operational Services,Revenue,Agency Staff,Human Resources
http://statistics.data.gov.uk/search?search=E07000114,Thanet District Council,14/02/2017,424977,2359.36,,Hr Go (Kent) Ltd,HRG001,Operational Services,Revenue,Agency Staff,Human Resources
http://statistics.data.gov.uk/search?search=E07000114,Thanet District Council,14/02/2017,425481,321.98,,Hr Go (Kent) Ltd,HRG001,Community Services,Revenue,Agency Staff,Human Resources
http://statistics.data.gov.uk/search?search=E07000114,Thanet District Council,14/02/2017,425943,300.00,,Hugin Vikings Fc,HUG012,Community Services,Revenue,Grants & Subscriptions,Grants
http://statistics.data.gov.uk/search?search=E07000114,Thanet District Council,14/02/2017,425001,685.75,,Hydraquip Hose & Hydraulics,HYD003,Operational Services,Revenue,"Repairs,  Alter & Mtce - Build",Vehicle Management
http://statistics.data.gov.uk/search?search=E07000114,Thanet District Council,14/02/2017,424884,240.00,,John Reeve (Plant Hire) Ltd,REE013,Operational Services,Revenue,"Repairs,  Alter & Mtce - Build",Vehicle Management
http://statistics.data.gov.uk/search?search=E07000114,Thanet District Council,14/02/2017,425088,49239.41,,Kent County Council Re Pension Fund,KCC001,Corporate Resources and S151,Revenue,Severance Payments,Financial Services
http://statistics.data.gov.uk/search?search=E07000114,Thanet District Council,14/02/2017,425741,400.00,,Km Media Group Limited,KMM001,Community Services,Revenue,Miscellaneous Expenses,Facilities And Management Serv
http://statistics.data.gov.uk/search?search=E07000114,Thanet District Council,14/02/2017,424831,285.00,,Kpr Midlink Ltd,KPR004,East Kent Shared Services,Revenue,Communications & Computing,ICT
http://statistics.data.gov.uk/search?search=E07000114,Thanet District Council,14/02/2017,425836,4093.94,,Level 3 Communications (Uk) Ltd,LEV005,Corporate Resources and S151,Balance Sheet,Telephone Holding Account,ICT
http://statistics.data.gov.uk/search?search=E07000114,Thanet District Council,14/02/2017,425026,602.34,,Lister Wilder Limited,LIS002,Operational Services,Revenue,"Equip, Furniture And Materials",Horticultural
http://statistics.data.gov.uk/search?search=E07000114,Thanet District Council,14/02/2017,424658,3203.16,,Lobster Van Hire Ltd,LOB001,Operational Services,Revenue,Cont Hire & Operating Lease,Vehicle Management
http://statistics.data.gov.uk/search?search=E07000114,Thanet District Council,14/02/2017,425296,255.00,,Local World Limited,LOC018,Community Services,Revenue,Miscellaneous Expenses,Facilities And Management Serv
http://statistics.data.gov.uk/search?search=E07000114,Thanet District Council,14/02/2017,424922,358.65,,Main Man Supplies Ltd,MAI001,Operational Services,Revenue,"Clothes, Uniforms & Laundry",Clothing
http://statistics.data.gov.uk/search?search=E07000114,Thanet District Council,14/02/2017,425244,228.00,,Main Man Supplies Ltd,MAI001,Operational Services,Revenue,"Clothes, Uniforms & Laundry",Clothing
http://statistics.data.gov.uk/search?search=E07000114,Thanet District Council,14/02/2017,425527,225.00,,Main Man Supplies Ltd,MAI001,Operational Services,Revenue,"Clothes, Uniforms & Laundry",Clothing
http://statistics.data.gov.uk/search?search=E07000114,Thanet District Council,14/02/2017,425795,325.00,,Matt Hutchings,HUT003,Community Services,Revenue,Services,Legal Services
http://statistics.data.gov.uk/search?search=E07000114,Thanet District Council,14/02/2017,424818,-4858.00,,Mears Ltd,MEA003,Corporate Resources and S151,Balance Sheet,Repairs And Mtce Holding A/C,Construction-Repair And Maint
http://statistics.data.gov.uk/search?search=E07000114,Thanet District Council,14/02/2017,424822,589.18,,Mears Ltd,MEA003,Operational Services,Revenue,"Repairs,  Alter & Mtce - Build",Construction-Repair And Maint
http://statistics.data.gov.uk/search?search=E07000114,Thanet District Council,14/02/2017,425256,680.22,,Mears Ltd,MEA003,Corporate Resources and S151,Balance Sheet,Repairs And Mtce Holding A/C,Construction-Repair And Maint
http://statistics.data.gov.uk/search?search=E07000114,Thanet District Council,14/02/2017,425257,4830.00,,Mears Ltd,MEA003,Corporate Resources and S151,Balance Sheet,Repairs And Mtce Holding A/C,Construction-Repair And Maint
http://statistics.data.gov.uk/search?search=E07000114,Thanet District Council,14/02/2017,425299,622.99,,Mears Ltd,MEA003,Corporate Governance,Revenue,"Repairs,  Alter & Mtce - Build",Construction-Repair And Maint
http://statistics.data.gov.uk/search?search=E07000114,Thanet District Council,14/02/2017,425515,20724.71,,Mears Ltd,MEA003,Corporate Resources and S151,Balance Sheet,Repairs And Mtce Holding A/C,Construction-Repair And Maint
http://statistics.data.gov.uk/search?search=E07000114,Thanet District Council,14/02/2017,425516,4511.44,,Mears Ltd,MEA003,Corporate Resources and S151,Balance Sheet,Repairs And Mtce Holding A/C,Construction-Repair And Maint
http://statistics.data.gov.uk/search?search=E07000114,Thanet District Council,14/02/2017,425517,2236.25,,Mears Ltd,MEA003,Corporate Resources and S151,Balance Sheet,Repairs And Mtce Holding A/C,Construction-Repair And Maint
http://statistics.data.gov.uk/search?search=E07000114,Thanet District Council,14/02/2017,425518,1114.93,,Mears Ltd,MEA003,Corporate Resources and S151,Balance Sheet,Repairs And Mtce Holding A/C,Construction-Repair And Maint
http://statistics.data.gov.uk/search?search=E07000114,Thanet District Council,14/02/2017,425519,22047.24,,Mears Ltd,MEA003,Corporate Resources and S151,Balance Sheet,Repairs And Mtce Holding A/C,Construction-Repair And Maint
http://statistics.data.gov.uk/search?search=E07000114,Thanet District Council,14/02/2017,425520,58499.90,,Mears Ltd,MEA003,Corporate Resources and S151,Balance Sheet,Repairs And Mtce Holding A/C,Construction-Repair And Maint
http://statistics.data.gov.uk/search?search=E07000114,Thanet District Council,14/02/2017,425521,20379.06,,Mears Ltd,MEA003,Corporate Resources and S151,Balance Sheet,Repairs And Mtce Holding A/C,Construction-Repair And Maint
http://statistics.data.gov.uk/search?search=E07000114,Thanet District Council,14/02/2017,425017,315.00,,Michelle Williams,WIL064,Community Services,Revenue,Services,Arts And Leisure Services
http://statistics.data.gov.uk/search?search=E07000114,Thanet District Council,14/02/2017,424990,889.71,,Midland Industrial Flooring Limited,MID015,Corporate Resources and S151,Balance Sheet,Plant And Equipment,Construction-Repair And Maint
http://statistics.data.gov.uk/search?search=E07000114,Thanet District Council,14/02/2017,424990,4197.00,,Midland Industrial Flooring Limited,MID015,Operational Services,Revenue,"Equip, Furniture And Materials",Construction-Repair And Maint
http://statistics.data.gov.uk/search?search=E07000114,Thanet District Council,14/02/2017,424990,664.91,,Midland Industrial Flooring Limited,MID015,Operational Services,Revenue,"Repairs,  Alter & Mtce - Build",Construction-Repair And Maint
http://statistics.data.gov.uk/search?search=E07000114,Thanet District Council,14/02/2017,425248,623.52,,Morgan Jones Ltd,MOR001,Chief Executive,Revenue,Agency Staff,Human Resources
http://statistics.data.gov.uk/search?search=E07000114,Thanet District Council,14/02/2017,425394,743.57,,Nauticalia Limited,NAU001,Community Services,Revenue,"Equip, Furniture And Materials",Stationery
http://statistics.data.gov.uk/search?search=E07000114,Thanet District Council,14/02/2017,424894,1246.76,,Ohuk Limited,OHU001,Operational Services,Revenue,Agency Staff,Human Resources
http://statistics.data.gov.uk/search?search=E07000114,Thanet District Council,14/02/2017,424717,244.63,,Paul Nunn Limited,NUN002,Operational Services,Revenue,Direct Transport Costs,Vehicle Management
http://statistics.data.gov.uk/search?search=E07000114,Thanet District Council,14/02/2017,425052,401.58,,Phoenix Software Ltd,PHO002,Corporate Resources and S151,Revenue,Communications & Computing,ICT
http://statistics.data.gov.uk/search?search=E07000114,Thanet District Council,14/02/2017,425052,401.58,,Phoenix Software Ltd,PHO002,East Kent Shared Services,Revenue,Communications & Computing,ICT
http://statistics.data.gov.uk/search?search=E07000114,Thanet District Council,14/02/2017,425286,2000.00,,Premier Signs,PRE027,Operational Services,Revenue,"Equip, Furniture And Materials",Building Construction Material
http://statistics.data.gov.uk/search?search=E07000114,Thanet District Council,14/02/2017,425073,977.17,,Southern Electric,SEL007,Corporate Governance,Revenue,Energy Costs,Utilities
http://statistics.data.gov.uk/search?search=E07000114,Thanet District Council,14/02/2017,425074,1256.90,,Southern Electric,SEL007,Corporate Governance,Revenue,Energy Costs,Utilities
http://statistics.data.gov.uk/search?search=E07000114,Thanet District Council,14/02/2017,425693,284.97,,Southern Electric,SEL007,Operational Services,Revenue,Energy Costs,Utilities
http://statistics.data.gov.uk/search?search=E07000114,Thanet District Council,14/02/2017,425694,233.58,,Southern Electric,SEL007,Operational Services,Revenue,Energy Costs,Utilities
http://statistics.data.gov.uk/search?search=E07000114,Thanet District Council,14/02/2017,425696,-1256.90,,Southern Electric,SEL007,Corporate Governance,Revenue,Energy Costs,Utilities
http://statistics.data.gov.uk/search?search=E07000114,Thanet District Council,14/02/2017,425697,-977.17,,Southern Electric,SEL007,Corporate Governance,Revenue,Energy Costs,Utilities
http://statistics.data.gov.uk/search?search=E07000114,Thanet District Council,14/02/2017,425700,904.45,,Southern Electric,SEL007,Corporate Governance,Revenue,Energy Costs,Utilities
http://statistics.data.gov.uk/search?search=E07000114,Thanet District Council,14/02/2017,425701,4.76,,Southern Electric,SEL007,Community Services,Revenue,Energy Costs,Utilities
http://statistics.data.gov.uk/search?search=E07000114,Thanet District Council,14/02/2017,425701,509.18,,Southern Electric,SEL007,Operational Services,Revenue,Energy Costs,Utilities
http://statistics.data.gov.uk/search?search=E07000114,Thanet District Council,14/02/2017,425704,1404.81,,Southern Electric,SEL007,Corporate Governance,Revenue,Energy Costs,Utilities
http://statistics.data.gov.uk/search?search=E07000114,Thanet District Council,14/02/2017,425792,403.21,,Southern Water,SWA001,Operational Services,Revenue,Water Services,Utilities
http://statistics.data.gov.uk/search?search=E07000114,Thanet District Council,14/02/2017,425794,1865.19,,Southern Water,SWA001,Operational Services,Revenue,Water Services,Utilities
http://statistics.data.gov.uk/search?search=E07000114,Thanet District Council,14/02/2017,425850,378.82,,Southern Water,SWA001,Operational Services,Revenue,Water Services,Utilities
http://statistics.data.gov.uk/search?search=E07000114,Thanet District Council,14/02/2017,425856,2121.74,,Southern Water,SWA001,Operational Services,Revenue,Water Services,Utilities
http://statistics.data.gov.uk/search?search=E07000114,Thanet District Council,14/02/2017,425861,2122.10,,Southern Water,SWA001,Operational Services,Revenue,Water Services,Utilities
http://statistics.data.gov.uk/search?search=E07000114,Thanet District Council,14/02/2017,425124,2054.00,,Streetmaster (S.Wales) Limited,STR001,Operational Services,Revenue,"Equip, Furniture And Materials",Highway Equipment And Material
http://statistics.data.gov.uk/search?search=E07000114,Thanet District Council,14/02/2017,425401,25676.00,,Swale Heating Ltd,SWA006,Corporate Resources and S151,Balance Sheet,Repairs And Mtce Holding A/C,Building Construction Material
http://statistics.data.gov.uk/search?search=E07000114,Thanet District Council,14/02/2017,425402,795.97,,Swale Heating Ltd,SWA006,Corporate Resources and S151,Balance Sheet,Repairs And Mtce Holding A/C,Building Construction Material
http://statistics.data.gov.uk/search?search=E07000114,Thanet District Council,14/02/2017,425404,570.00,,Swale Heating Ltd,SWA006,Corporate Resources and S151,Balance Sheet,Repairs And Mtce Holding A/C,Building Construction Material
http://statistics.data.gov.uk/search?search=E07000114,Thanet District Council,14/02/2017,425475,3608.87,,Swale Heating Ltd,SWA006,Corporate Resources and S151,Balance Sheet,Repairs And Mtce Holding A/C,Building Construction Material
http://statistics.data.gov.uk/search?search=E07000114,Thanet District Council,14/02/2017,425353,211.28,,Tchibo Coffee International Ltd,TCH007,Corporate Governance,Revenue,Catering,Catering
http://statistics.data.gov.uk/search?search=E07000114,Thanet District Council,14/02/2017,425409,451.00,,Thanet Waste Services Ltd,TWA001,Operational Services,Revenue,Private Contractors,Environmental Services
http://statistics.data.gov.uk/search?search=E07000114,Thanet District Council,14/02/2017,425060,2975.00,,The Glenwood Hotel,GLE007,Community Services,Revenue,Services,Housing Management
http://statistics.data.gov.uk/search?search=E07000114,Thanet District Council,14/02/2017,425061,2495.84,,The Glenwood Hotel,GLE007,Community Services,Revenue,Services,Housing Management
http://statistics.data.gov.uk/search?search=E07000114,Thanet District Council,14/02/2017,425062,3237.53,,The Glenwood Hotel,GLE007,Community Services,Revenue,Services,Housing Management
http://statistics.data.gov.uk/search?search=E07000114,Thanet District Council,14/02/2017,425063,2162.49,,The Glenwood Hotel,GLE007,Community Services,Revenue,Services,Housing Management
http://statistics.data.gov.uk/search?search=E07000114,Thanet District Council,14/02/2017,425298,325.00,,Turner Contemporary Enterprises Ltd,TUR022,Community Services,Revenue,Services,Facilities And Management Serv
http://statistics.data.gov.uk/search?search=E07000114,Thanet District Council,14/02/2017,425917,5000.00,,Visit Kent Ltd,VIS005,Community Services,Revenue,Communications & Computing,Arts And Leisure Services
http://statistics.data.gov.uk/search?search=E07000114,Thanet District Council,14/02/2017,425002,840.00,,Watling Tyre Service Ltd,WAT003,Operational Services,Revenue,Direct Transport Costs,Vehicle Management
http://statistics.data.gov.uk/search?search=E07000114,Thanet District Council,14/02/2017,425250,300.00,,Weld Of Fabrications Limited,WEL010,Operational Services,Revenue,"Repairs,  Alter & Mtce - Build",Building Construction Material
http://statistics.data.gov.uk/search?search=E07000114,Thanet District Council,14/02/2017,426032,258.50,,West Yorkshire Pension Fund,WES050,Corporate Resources and S151,Revenue,Services,Financial Services
http://statistics.data.gov.uk/search?search=E07000114,Thanet District Council,14/02/2017,425267,1450.00,,Westbrook Construction (Margate) Ltd,WES021,Corporate Resources and S151,Balance Sheet,Rechargeable Works,Various Categories
http://statistics.data.gov.uk/search?search=E07000114,Thanet District Council,14/02/2017,425107,931.80,,Wise Handling Limited,WIS001,Operational Services,Revenue,"Repairs,  Alter & Mtce - Build",Maritime Services
http://statistics.data.gov.uk/search?search=E07000114,Thanet District Council,15/02/2017,425237,15764.75,,Dcb (Kent) Ltd,DCB001,Corporate Resources and S151,Balance Sheet,Repairs And Mtce Holding A/C,Construction-Repair And Maint
http://statistics.data.gov.uk/search?search=E07000114,Thanet District Council,15/02/2017,425238,3596.07,,Dcb (Kent) Ltd,DCB001,Corporate Resources and S151,Balance Sheet,Repairs And Mtce Holding A/C,Construction-Repair And Maint
http://statistics.data.gov.uk/search?search=E07000114,Thanet District Council,16/02/2017,426251,246362.00,,Kent & Medway Towns Fire Authority,KMT001,Corporate Resources and S151,Balance Sheet,Collection Fund - Preceptors,Various Cats-Public Sector
http://statistics.data.gov.uk/search?search=E07000114,Thanet District Council,16/02/2017,426250,3894066.00,,Kent County Council,KCC022,Corporate Resources and S151,Balance Sheet,Collection Fund - Preceptors,Various Cats-Public Sector
http://statistics.data.gov.uk/search?search=E07000114,Thanet District Council,16/02/2017,426252,525761.00,,Kent Police & Crime Commissioner,KPA003,Corporate Resources and S151,Balance Sheet,Collection Fund - Preceptors,Various Cats-Public Sector
http://statistics.data.gov.uk/search?search=E07000114,Thanet District Council,17/02/2017,N/A,529.38,,REDACTED PERSONAL DATE,N/A,East Kent Shared Services,Revenue,Car Allowances,Non Trade Payee
http://statistics.data.gov.uk/search?search=E07000114,Thanet District Council,17/02/2017,N/A,288.82,,REDACTED PERSONAL DATE,N/A,East Kent Shared Services,Revenue,Car Allowances,Non Trade Payee
http://statistics.data.gov.uk/search?search=E07000114,Thanet District Council,17/02/2017,N/A,566.75,,REDACTED PERSONAL DATE,N/A,East Kent Shared Services,Revenue,Car Allowances,Non Trade Payee
http://statistics.data.gov.uk/search?search=E07000114,Thanet District Council,17/02/2017,N/A,320.74,,REDACTED PERSONAL DATE,N/A,East Kent Shared Services,Revenue,Car Allowances,Non Trade Payee
http://statistics.data.gov.uk/search?search=E07000114,Thanet District Council,17/02/2017,N/A,4.30,,REDACTED PERSONAL DATE,N/A,East Kent Shared Services,Revenue,Public Transport,Non Trade Payee
http://statistics.data.gov.uk/search?search=E07000114,Thanet District Council,17/02/2017,N/A,223.00,,REDACTED PERSONAL DATE,N/A,East Kent Shared Services,Revenue,Grants & Subscriptions,Non Trade Payee
http://statistics.data.gov.uk/search?search=E07000114,Thanet District Council,17/02/2017,N/A,97.33,,REDACTED PERSONAL DATE,N/A,East Kent Shared Services,Revenue,Expenses,Non Trade Payee
http://statistics.data.gov.uk/search?search=E07000114,Thanet District Council,17/02/2017,N/A,3.34,,REDACTED PERSONAL DATE,N/A,East Kent Shared Services,Revenue,Public Transport,Non Trade Payee
http://statistics.data.gov.uk/search?search=E07000114,Thanet District Council,17/02/2017,N/A,38.91,,REDACTED PERSONAL DATE,N/A,East Kent Shared Services,Revenue,Car Allowances,Non Trade Payee
http://statistics.data.gov.uk/search?search=E07000114,Thanet District Council,17/02/2017,N/A,298.17,,REDACTED PERSONAL DATE,N/A,Community Services,Revenue,Car Allowances,Non Trade Payee
http://statistics.data.gov.uk/search?search=E07000114,Thanet District Council,17/02/2017,N/A,288.82,,REDACTED PERSONAL DATE,N/A,Community Services,Revenue,Car Allowances,Non Trade Payee
http://statistics.data.gov.uk/search?search=E07000114,Thanet District Council,17/02/2017,N/A,288.05,,REDACTED PERSONAL DATE,N/A,Community Services,Revenue,Car Allowances,Non Trade Payee
http://statistics.data.gov.uk/search?search=E07000114,Thanet District Council,17/02/2017,N/A,276.37,,REDACTED PERSONAL DATE,N/A,Community Services,Revenue,Car Allowances,Non Trade Payee
http://statistics.data.gov.uk/search?search=E07000114,Thanet District Council,17/02/2017,N/A,270.14,,REDACTED PERSONAL DATE,N/A,Community Services,Revenue,Car Allowances,Non Trade Payee
http://statistics.data.gov.uk/search?search=E07000114,Thanet District Council,17/02/2017,N/A,280.26,,REDACTED PERSONAL DATE,N/A,Operational Services,Revenue,Car Allowances,Non Trade Payee
http://statistics.data.gov.uk/search?search=E07000114,Thanet District Council,17/02/2017,N/A,253.79,,REDACTED PERSONAL DATE,N/A,Operational Services,Revenue,Car Allowances,Non Trade Payee
http://statistics.data.gov.uk/search?search=E07000114,Thanet District Council,17/02/2017,N/A,343.42,,REDACTED PERSONAL DATE,N/A,Operational Services,Revenue,Car Allowances,Non Trade Payee
http://statistics.data.gov.uk/search?search=E07000114,Thanet District Council,21/02/2017,426391,781.00,,10 Dalby Square (Management) Ltd,10D001,Corporate Resources and S151,Balance Sheet,Capital Exp-Non Council Assets,Grants
http://statistics.data.gov.uk/search?search=E07000114,Thanet District Council,21/02/2017,426392,781.00,,10 Dalby Square (Management) Ltd,10D001,Corporate Resources and S151,Balance Sheet,Capital Exp-Non Council Assets,Grants
http://statistics.data.gov.uk/search?search=E07000114,Thanet District Council,21/02/2017,426393,2203.90,,10 Dalby Square (Management) Ltd,10D001,Corporate Resources and S151,Balance Sheet,Capital Exp-Non Council Assets,Grants
http://statistics.data.gov.uk/search?search=E07000114,Thanet District Council,21/02/2017,426394,3259.60,,10 Dalby Square (Management) Ltd,10D001,Corporate Resources and S151,Balance Sheet,Capital Exp-Non Council Assets,Grants
http://statistics.data.gov.uk/search?search=E07000114,Thanet District Council,21/02/2017,426395,3259.60,,10 Dalby Square (Management) Ltd,10D001,Corporate Resources and S151,Balance Sheet,Capital Exp-Non Council Assets,Grants
http://statistics.data.gov.uk/search?search=E07000114,Thanet District Council,21/02/2017,425285,7200.00,,Accordio Limited,ACC010,East Kent Shared Services,Revenue,Services,Consultancy
http://statistics.data.gov.uk/search?search=E07000114,Thanet District Council,21/02/2017,425847,975.00,,Advanced Business Solutions,COA011,Corporate Resources and S151,Revenue,Communications & Computing,ICT
http://statistics.data.gov.uk/search?search=E07000114,Thanet District Council,21/02/2017,426189,4420.00,,All About Asbestos Limited,ALL044,Corporate Governance,Revenue,"Repairs,  Alter & Mtce - Build",Environmental Services
http://statistics.data.gov.uk/search?search=E07000114,Thanet District Council,21/02/2017,425819,495.00,,All Access Ltd,ALL031,Community Services,Revenue,Services,Building Construction Material
http://statistics.data.gov.uk/search?search=E07000114,Thanet District Council,21/02/2017,425522,240.00,,All Sign Solutions Ltd,ALL002,Operational Services,Revenue,"Repairs,  Alter & Mtce - Build",Building Construction Material
http://statistics.data.gov.uk/search?search=E07000114,Thanet District Council,21/02/2017,425504,9914.00,,Allies And Morrison Llp,ALL045,Corporate Resources and S151,Balance Sheet,Other Land And Buildings-Hra,Consultancy
http://statistics.data.gov.uk/search?search=E07000114,Thanet District Council,21/02/2017,425387,245.07,,Andrews & Elliott Limited,AND001,Operational Services,Revenue,"Equip, Furniture And Materials",Cemetery And Crematorium
http://statistics.data.gov.uk/search?search=E07000114,Thanet District Council,21/02/2017,425902,740.00,,Bayly Environmental Services Ltd,BAY001,Operational Services,Revenue,"Repairs,  Alter & Mtce - Build",Environmental Services
http://statistics.data.gov.uk/search?search=E07000114,Thanet District Council,21/02/2017,425951,500.00,,Bradstowe Chartered Surveyors,BRA027,Community Services,Revenue,Services,Facilities And Management Serv
http://statistics.data.gov.uk/search?search=E07000114,Thanet District Council,21/02/2017,425952,500.00,,Bradstowe Chartered Surveyors,BRA027,Community Services,Revenue,Services,Facilities And Management Serv
http://statistics.data.gov.uk/search?search=E07000114,Thanet District Council,21/02/2017,426409,1801.23,,Bramling Construction Ltd,BRA020,Corporate Resources and S151,Balance Sheet,Capital Exp-Non Council Assets,Grants
http://statistics.data.gov.uk/search?search=E07000114,Thanet District Council,21/02/2017,425355,248.40,,Canon (Uk) Ltd,CAN021,Corporate Governance,Revenue,"Equip, Furniture And Materials",Facilities And Management Serv
http://statistics.data.gov.uk/search?search=E07000114,Thanet District Council,21/02/2017,425395,813.30,,Canon (Uk) Ltd,CAN021,Corporate Governance,Revenue,"Equip, Furniture And Materials",Facilities And Management Serv
http://statistics.data.gov.uk/search?search=E07000114,Thanet District Council,21/02/2017,425396,495.00,,Canon (Uk) Ltd,CAN021,Corporate Governance,Revenue,"Equip, Furniture And Materials",Facilities And Management Serv
http://statistics.data.gov.uk/search?search=E07000114,Thanet District Council,21/02/2017,425730,2418.48,,Canon (Uk) Ltd,CAN021,Corporate Governance,Revenue,"Equip, Furniture And Materials",Facilities And Management Serv
http://statistics.data.gov.uk/search?search=E07000114,Thanet District Council,21/02/2017,425772,3612.66,,Canon (Uk) Ltd,CAN021,Corporate Governance,Revenue,"Equip, Furniture And Materials",Facilities And Management Serv
http://statistics.data.gov.uk/search?search=E07000114,Thanet District Council,21/02/2017,425542,392.93,,Ccs Media Limited,CCS003,Community Services,Revenue,Communications & Computing,ICT
http://statistics.data.gov.uk/search?search=E07000114,Thanet District Council,21/02/2017,425789,7000.00,,Coastal Publications,COA018,Community Services,Revenue,Grants & Subscriptions,Arts And Leisure Services
http://statistics.data.gov.uk/search?search=E07000114,Thanet District Council,21/02/2017,425811,427.07,,Cobalt Telephone Technologies Ltd,COB002,Operational Services,Revenue,Services,ICT
http://statistics.data.gov.uk/search?search=E07000114,Thanet District Council,21/02/2017,425954,2065.10,,Cobalt Telephone Technologies Ltd,COB002,Operational Services,Revenue,Services,ICT
http://statistics.data.gov.uk/search?search=E07000114,Thanet District Council,21/02/2017,425722,269.68,,Computerland Uk Limited,COM045,East Kent Shared Services,Revenue,Communications & Computing,ICT
http://statistics.data.gov.uk/search?search=E07000114,Thanet District Council,21/02/2017,426021,336.04,,Computerland Uk Limited,COM045,East Kent Shared Services,Revenue,Communications & Computing,ICT
http://statistics.data.gov.uk/search?search=E07000114,Thanet District Council,21/02/2017,425501,116025.00,,Coombs (Canterbury) Ltd,COO033,Corporate Resources and S151,Balance Sheet,Other Land And Buildings-Hra,Construction-Repair And Maint
http://statistics.data.gov.uk/search?search=E07000114,Thanet District Council,21/02/2017,426295,1200.00,,Creditsafe Business Solutions Ltd,CRE013,Corporate Resources and S151,Revenue,Grants & Subscriptions,Financial Services
http://statistics.data.gov.uk/search?search=E07000114,Thanet District Council,21/02/2017,425831,4877.50,,Crown Estate,CRO022,Operational Services,Revenue,Rents,Maritime Services
http://statistics.data.gov.uk/search?search=E07000114,Thanet District Council,21/02/2017,425832,25264.75,,Crown Estate,CRO022,Operational Services,Revenue,Rents,Maritime Services
http://statistics.data.gov.uk/search?search=E07000114,Thanet District Council,21/02/2017,425833,31450.25,,Crown Estate,CRO022,Operational Services,Revenue,Rents,Maritime Services
http://statistics.data.gov.uk/search?search=E07000114,Thanet District Council,21/02/2017,426193,2100.00,,Daedalus Environmental Ltd,DAE001,Community Services,Revenue,Services,Consultancy
http://statistics.data.gov.uk/search?search=E07000114,Thanet District Council,21/02/2017,425502,3158.72,,Dha Planning Limited,DHA002,Community Services,Revenue,Services,Consultancy
http://statistics.data.gov.uk/search?search=E07000114,Thanet District Council,21/02/2017,426208,498.13,,Digital Id Ltd,DIG008,Corporate Governance,Revenue,"Equip, Furniture And Materials",Facilities And Management Serv
http://statistics.data.gov.uk/search?search=E07000114,Thanet District Council,21/02/2017,425540,484.00,,Disclosure And Barring Service,DIS017,Community Services,Revenue,"Equip, Furniture And Materials",Human Resources
http://statistics.data.gov.uk/search?search=E07000114,Thanet District Council,21/02/2017,425408,344.83,,E Saunders Margate Ltd,SAU001,Operational Services,Revenue,"Repairs,  Alter & Mtce - Build",Construction-Repair And Maint
http://statistics.data.gov.uk/search?search=E07000114,Thanet District Council,21/02/2017,425883,328.80,,Eagle Envelopes Ltd,EAG001,East Kent Shared Services,Revenue,"Print, Stat And Gen Off Exps",Stationery
http://statistics.data.gov.uk/search?search=E07000114,Thanet District Council,21/02/2017,425915,346.67,,East Kent College,EAS018,Community Services,Revenue,Rents,Education
http://statistics.data.gov.uk/search?search=E07000114,Thanet District Council,21/02/2017,425509,799.00,,Ecologia Environmental Solutions Ltd,ECO004,Corporate Resources and S151,Balance Sheet,Council Dwellings,Construction-Repair And Maint
http://statistics.data.gov.uk/search?search=E07000114,Thanet District Council,21/02/2017,425510,1097.00,,Ecologia Environmental Solutions Ltd,ECO004,Corporate Resources and S151,Balance Sheet,Council Dwellings,Construction-Repair And Maint
http://statistics.data.gov.uk/search?search=E07000114,Thanet District Council,21/02/2017,425511,763.00,,Ecologia Environmental Solutions Ltd,ECO004,Corporate Resources and S151,Balance Sheet,Council Dwellings,Construction-Repair And Maint
http://statistics.data.gov.uk/search?search=E07000114,Thanet District Council,21/02/2017,425512,1010.00,,Ecologia Environmental Solutions Ltd,ECO004,Corporate Resources and S151,Balance Sheet,Council Dwellings,Construction-Repair And Maint
http://statistics.data.gov.uk/search?search=E07000114,Thanet District Council,21/02/2017,425513,974.00,,Ecologia Environmental Solutions Ltd,ECO004,Corporate Resources and S151,Balance Sheet,Council Dwellings,Construction-Repair And Maint
http://statistics.data.gov.uk/search?search=E07000114,Thanet District Council,21/02/2017,425514,772.00,,Ecologia Environmental Solutions Ltd,ECO004,Corporate Resources and S151,Balance Sheet,Council Dwellings,Construction-Repair And Maint
http://statistics.data.gov.uk/search?search=E07000114,Thanet District Council,21/02/2017,426428,5720.00,,Environment Agency,ENV001,Operational Services,Revenue,Services,Environmental Services
http://statistics.data.gov.uk/search?search=E07000114,Thanet District Council,21/02/2017,426396,8456.59,,Evermech Services Ltd,EVE011,Corporate Resources and S151,Balance Sheet,Capital Exp-Non Council Assets,Grants
http://statistics.data.gov.uk/search?search=E07000114,Thanet District Council,21/02/2017,426397,1570.92,,Family Mosaic Housing,FAM001,Corporate Resources and S151,Balance Sheet,Capital Exp-Non Council Assets,Housing Management
http://statistics.data.gov.uk/search?search=E07000114,Thanet District Council,21/02/2017,426410,1676.40,,Family Mosaic Housing,FAM001,Corporate Resources and S151,Balance Sheet,Capital Exp-Non Council Assets,Housing Management
http://statistics.data.gov.uk/search?search=E07000114,Thanet District Council,21/02/2017,426030,457.80,,Farrer Barnes Limited,FAR012,Corporate Resources and S151,Revenue,Agency Staff,Human Resources
http://statistics.data.gov.uk/search?search=E07000114,Thanet District Council,21/02/2017,426400,2767.95,,Furley Page Solicitors,FUR003,Corporate Resources and S151,Balance Sheet,Capital Exp-Non Council Assets,Grants
http://statistics.data.gov.uk/search?search=E07000114,Thanet District Council,21/02/2017,426401,2116.87,,Furley Page Solicitors,FUR003,Corporate Resources and S151,Balance Sheet,Capital Exp-Non Council Assets,Grants
http://statistics.data.gov.uk/search?search=E07000114,Thanet District Council,21/02/2017,425306,265.56,,G & G Forklifts,GGF001,Operational Services,Revenue,"Equip, Furniture And Materials",Vehicle Management
http://statistics.data.gov.uk/search?search=E07000114,Thanet District Council,21/02/2017,425825,430.00,,Gerlack & Thorne Ltd,GER001,Community Services,Revenue,"Repairs,  Alter & Mtce - Build",Construction-Repair And Maint
http://statistics.data.gov.uk/search?search=E07000114,Thanet District Council,21/02/2017,425399,1030.00,,Grant Thornton Uk Llp,GRA048,Corporate Resources and S151,Revenue,Services,Financial Services
http://statistics.data.gov.uk/search?search=E07000114,Thanet District Council,21/02/2017,425400,1545.00,,Grant Thornton Uk Llp,GRA048,Corporate Resources and S151,Revenue,Services,Financial Services
http://statistics.data.gov.uk/search?search=E07000114,Thanet District Council,21/02/2017,426398,4914.00,,Handicare Accessibility Ltd,HAN017,Corporate Resources and S151,Balance Sheet,Capital Exp-Non Council Assets,Grants
http://statistics.data.gov.uk/search?search=E07000114,Thanet District Council,21/02/2017,425969,800.00,,Hastings Borough Council,HAS002,Community Services,Revenue,Services,Various Cats-Public Sector
http://statistics.data.gov.uk/search?search=E07000114,Thanet District Council,21/02/2017,425971,1202.50,,Hays Specialist Recruitment Ltd,HAY020,Corporate Resources and S151,Balance Sheet,Council Dwellings,Human Resources
http://statistics.data.gov.uk/search?search=E07000114,Thanet District Council,21/02/2017,425972,3000.00,,Hays Specialist Recruitment Ltd,HAY020,Corporate Resources and S151,Revenue,Services,Human Resources
http://statistics.data.gov.uk/search?search=E07000114,Thanet District Council,21/02/2017,426190,1202.50,,Hays Specialist Recruitment Ltd,HAY020,Corporate Resources and S151,Balance Sheet,Council Dwellings,Human Resources
http://statistics.data.gov.uk/search?search=E07000114,Thanet District Council,21/02/2017,426152,867.22,,Hi Way Services Ltd,HIW002,Operational Services,Revenue,"Repairs,  Alter & Mtce - Build",Highway Equipment And Material
http://statistics.data.gov.uk/search?search=E07000114,Thanet District Council,21/02/2017,425487,460.25,,Hr Go (Kent) Ltd,HRG001,Operational Services,Revenue,Agency Staff,Human Resources
http://statistics.data.gov.uk/search?search=E07000114,Thanet District Council,21/02/2017,425529,219.45,,Hr Go (Kent) Ltd,HRG001,Corporate Governance,Revenue,Agency Staff,Human Resources
http://statistics.data.gov.uk/search?search=E07000114,Thanet District Council,21/02/2017,425956,425.72,,Hr Go (Kent) Ltd,HRG001,Community Services,Revenue,Agency Staff,Human Resources
http://statistics.data.gov.uk/search?search=E07000114,Thanet District Council,21/02/2017,425962,466.83,,Hr Go (Kent) Ltd,HRG001,Operational Services,Revenue,Agency Staff,Human Resources
http://statistics.data.gov.uk/search?search=E07000114,Thanet District Council,21/02/2017,425251,926.85,,Hydraquip Hose & Hydraulics,HYD003,Operational Services,Revenue,"Equip, Furniture And Materials",Vehicle Management
http://statistics.data.gov.uk/search?search=E07000114,Thanet District Council,21/02/2017,425291,352.48,,Icom (Uk) Ltd,ICO001,Operational Services,Revenue,"Equip, Furniture And Materials",Maritime Services
http://statistics.data.gov.uk/search?search=E07000114,Thanet District Council,21/02/2017,426023,650.00,,Imperial Civil Enforcement Sols Ltd,IMP008,Operational Services,Revenue,Communications & Computing,Street And Traffic Management
http://statistics.data.gov.uk/search?search=E07000114,Thanet District Council,21/02/2017,426024,3250.00,,Imperial Civil Enforcement Sols Ltd,IMP008,Operational Services,Revenue,"Equip, Furniture And Materials",Street And Traffic Management
http://statistics.data.gov.uk/search?search=E07000114,Thanet District Council,21/02/2017,426404,605.00,,John Gale,GAL001,Corporate Resources and S151,Balance Sheet,Capital Exp-Non Council Assets,Grants
http://statistics.data.gov.uk/search?search=E07000114,Thanet District Council,21/02/2017,426406,599.10,,John Gale,GAL001,Corporate Resources and S151,Balance Sheet,Capital Exp-Non Council Assets,Grants
http://statistics.data.gov.uk/search?search=E07000114,Thanet District Council,21/02/2017,426399,8718.96,,Kent County Council,KCC002,Corporate Resources and S151,Balance Sheet,Capital Exp-Non Council Assets,Various Cats-Public Sector
http://statistics.data.gov.uk/search?search=E07000114,Thanet District Council,21/02/2017,425715,2449.75,,Kingdom Security Limited,KIN039,Operational Services,Revenue,Services,Street And Traffic Management
http://statistics.data.gov.uk/search?search=E07000114,Thanet District Council,21/02/2017,425892,239.88,,L W Burt & Son Ltd,BUR027,Corporate Governance,Revenue,"Repairs,  Alter & Mtce - Build",Construction-Repair And Maint
http://statistics.data.gov.uk/search?search=E07000114,Thanet District Council,21/02/2017,426390,767.00,,Leafi Limited,LEA026,Community Services,Revenue,Services,Catering
http://statistics.data.gov.uk/search?search=E07000114,Thanet District Council,21/02/2017,425888,1131.00,,Ling Metals Limited,LIN004,Operational Services,Revenue,Cleaning & Domestic Supplies,Environmental Services
http://statistics.data.gov.uk/search?search=E07000114,Thanet District Council,21/02/2017,425787,479.78,,Lyreco Uk Limited,LYR001,Corporate Governance,Revenue,"Print, Stat And Gen Off Exps",Stationery
http://statistics.data.gov.uk/search?search=E07000114,Thanet District Council,21/02/2017,425948,261.42,,Lyreco Uk Limited,LYR001,Community Services,Revenue,"Equip, Furniture And Materials",Stationery
http://statistics.data.gov.uk/search?search=E07000114,Thanet District Council,21/02/2017,425948,189.94,,Lyreco Uk Limited,LYR001,Operational Services,Revenue,"Equip, Furniture And Materials",Stationery
http://statistics.data.gov.uk/search?search=E07000114,Thanet District Council,21/02/2017,424983,2990.00,,M P Sutherland,SUT008,Community Services,Revenue,Services,Consultancy
http://statistics.data.gov.uk/search?search=E07000114,Thanet District Council,21/02/2017,425916,1302.47,,Margate Harbour Arm Ltd,MAR076,Community Services,Revenue,Services,Various Categories
http://statistics.data.gov.uk/search?search=E07000114,Thanet District Council,21/02/2017,425479,506.79,,Mears Ltd,MEA003,Corporate Resources and S151,Balance Sheet,Council Dwellings,Construction-Repair And Maint
http://statistics.data.gov.uk/search?search=E07000114,Thanet District Council,21/02/2017,425508,293.72,,Mears Ltd,MEA003,Corporate Governance,Revenue,"Repairs,  Alter & Mtce - Build",Construction-Repair And Maint
http://statistics.data.gov.uk/search?search=E07000114,Thanet District Council,21/02/2017,425721,239.55,,Mears Ltd,MEA003,Corporate Governance,Revenue,"Repairs,  Alter & Mtce - Build",Construction-Repair And Maint
http://statistics.data.gov.uk/search?search=E07000114,Thanet District Council,21/02/2017,425903,1208.68,,Mears Ltd,MEA003,Operational Services,Revenue,"Repairs,  Alter & Mtce - Build",Construction-Repair And Maint
http://statistics.data.gov.uk/search?search=E07000114,Thanet District Council,21/02/2017,425988,2034.91,,Mears Ltd,MEA003,Corporate Governance,Revenue,"Repairs,  Alter & Mtce - Build",Construction-Repair And Maint
http://statistics.data.gov.uk/search?search=E07000114,Thanet District Council,21/02/2017,425989,1386.00,,Mears Ltd,MEA003,Corporate Resources and S151,Balance Sheet,Council Dwellings,Construction-Repair And Maint
http://statistics.data.gov.uk/search?search=E07000114,Thanet District Council,21/02/2017,425990,7634.00,,Mears Ltd,MEA003,Corporate Resources and S151,Balance Sheet,Council Dwellings,Construction-Repair And Maint
http://statistics.data.gov.uk/search?search=E07000114,Thanet District Council,21/02/2017,425505,4156.40,,Med Clean South Ltd,MED015,Operational Services,Revenue,Cleaning & Domestic Supplies,Cleaning And Janitorial
http://statistics.data.gov.uk/search?search=E07000114,Thanet District Council,21/02/2017,425805,1449.75,,Med Clean South Ltd,MED015,Operational Services,Revenue,"Repairs,  Alter & Mtce - Build",Cleaning And Janitorial
http://statistics.data.gov.uk/search?search=E07000114,Thanet District Council,21/02/2017,426196,1800.00,,Michael Page Int Recruitment Ltd,PAG008,Corporate Resources and S151,Revenue,Services,Human Resources
http://statistics.data.gov.uk/search?search=E07000114,Thanet District Council,21/02/2017,425800,640.84,,Morgan Jones Ltd,MOR001,Chief Executive,Revenue,Agency Staff,Human Resources
http://statistics.data.gov.uk/search?search=E07000114,Thanet District Council,21/02/2017,425803,582.75,,Morgan Jones Ltd,MOR001,Community Services,Revenue,Agency Staff,Human Resources
http://statistics.data.gov.uk/search?search=E07000114,Thanet District Council,21/02/2017,426180,640.84,,Morgan Jones Ltd,MOR001,Chief Executive,Revenue,Agency Staff,Human Resources
http://statistics.data.gov.uk/search?search=E07000114,Thanet District Council,21/02/2017,426206,590.63,,Morgan Jones Ltd,MOR001,Community Services,Revenue,Agency Staff,Human Resources
http://statistics.data.gov.uk/search?search=E07000114,Thanet District Council,21/02/2017,425815,69.17,,Mr Darren Osborne,OSB008,Community Services,Revenue,Cleaning & Domestic Supplies,Cleaning And Janitorial
http://statistics.data.gov.uk/search?search=E07000114,Thanet District Council,21/02/2017,425815,451.66,,Mr Darren Osborne,OSB008,Corporate Governance,Revenue,Cleaning & Domestic Supplies,Cleaning And Janitorial
http://statistics.data.gov.uk/search?search=E07000114,Thanet District Council,21/02/2017,425815,40.00,,Mr Darren Osborne,OSB008,Operational Services,Revenue,Cleaning & Domestic Supplies,Cleaning And Janitorial
http://statistics.data.gov.uk/search?search=E07000114,Thanet District Council,21/02/2017,426411,2844.00,,Mullaney Roofing Limited,MUL006,Corporate Resources and S151,Balance Sheet,Capital Exp-Non Council Assets,Grants
http://statistics.data.gov.uk/search?search=E07000114,Thanet District Council,21/02/2017,426014,2016.00,,Nagels Uk Ltd,NAG001,Operational Services,Revenue,"Print, Stat And Gen Off Exps",Facilities And Management Serv
http://statistics.data.gov.uk/search?search=E07000114,Thanet District Council,21/02/2017,425531,457.50,,National Boat Shows Ltd,NAT001,Operational Services,Revenue,Miscellaneous Expenses,Arts And Leisure Services
http://statistics.data.gov.uk/search?search=E07000114,Thanet District Council,21/02/2017,426403,6050.00,,Northwood Builders,NOR002,Corporate Resources and S151,Balance Sheet,Capital Exp-Non Council Assets,Grants
http://statistics.data.gov.uk/search?search=E07000114,Thanet District Council,21/02/2017,426405,5991.00,,Northwood Builders,NOR002,Corporate Resources and S151,Balance Sheet,Capital Exp-Non Council Assets,Grants
http://statistics.data.gov.uk/search?search=E07000114,Thanet District Council,21/02/2017,425300,241.68,,Ocs Group Uk Ltd T/A Cannon,OCS003,Corporate Governance,Revenue,"Equip, Furniture And Materials",Cleaning And Janitorial
http://statistics.data.gov.uk/search?search=E07000114,Thanet District Council,21/02/2017,425473,869.85,,Ohuk Limited,OHU001,Operational Services,Revenue,Agency Staff,Human Resources
http://statistics.data.gov.uk/search?search=E07000114,Thanet District Council,21/02/2017,425912,695.88,,Ohuk Limited,OHU001,Operational Services,Revenue,Agency Staff,Human Resources
http://statistics.data.gov.uk/search?search=E07000114,Thanet District Council,21/02/2017,425541,2650.00,,Oscar Associates (Uk) Limited,OSC001,East Kent Shared Services,Revenue,Agency Staff,ICT
http://statistics.data.gov.uk/search?search=E07000114,Thanet District Council,21/02/2017,425538,17940.95,,Ovenden Allworks Limited,OVE008,Operational Services,Revenue,"Repairs,  Alter & Mtce - Build",Construction-Repair And Maint
http://statistics.data.gov.uk/search?search=E07000114,Thanet District Council,21/02/2017,425351,90.00,,Parkeon Limited,PAR063,Community Services,Revenue,"Equip, Furniture And Materials",Street And Traffic Management
http://statistics.data.gov.uk/search?search=E07000114,Thanet District Council,21/02/2017,425351,1422.00,,Parkeon Limited,PAR063,Operational Services,Revenue,"Equip, Furniture And Materials",Street And Traffic Management
http://statistics.data.gov.uk/search?search=E07000114,Thanet District Council,21/02/2017,425845,515.10,,Parkeon Limited,PAR063,Operational Services,Revenue,"Equip, Furniture And Materials",Street And Traffic Management
http://statistics.data.gov.uk/search?search=E07000114,Thanet District Council,21/02/2017,425807,1117.00,,Peer 1 (Uk) Limited,PEE003,East Kent Shared Services,Revenue,Communications & Computing,ICT
http://statistics.data.gov.uk/search?search=E07000114,Thanet District Council,21/02/2017,425280,1323.80,,Potter Raper Partnership,POT006,Corporate Resources and S151,Balance Sheet,Council Dwellings,Consultancy
http://statistics.data.gov.uk/search?search=E07000114,Thanet District Council,21/02/2017,425249,876.00,,Profile Security Services Limited,PRO018,Operational Services,Revenue,Services,Facilities And Management Serv
http://statistics.data.gov.uk/search?search=E07000114,Thanet District Council,21/02/2017,425724,22695.89,,Profile Security Services Limited,PRO018,Operational Services,Revenue,Services,Facilities And Management Serv
http://statistics.data.gov.uk/search?search=E07000114,Thanet District Council,21/02/2017,425808,315.00,,R Cannon,CAN007,Operational Services,Revenue,Services,Maritime Services
http://statistics.data.gov.uk/search?search=E07000114,Thanet District Council,21/02/2017,425392,320.83,,R G Williams & Co,WIL061,Operational Services,Revenue,"Equip, Furniture And Materials",Building Construction Material
http://statistics.data.gov.uk/search?search=E07000114,Thanet District Council,21/02/2017,425994,512.00,,Rics,RIC007,Corporate Governance,Revenue,Employee Related Schemes,Financial Services
http://statistics.data.gov.uk/search?search=E07000114,Thanet District Council,21/02/2017,425810,210.00,,Safetyshop,SAF010,Operational Services,Revenue,"Clothes, Uniforms & Laundry",Health And Safety
http://statistics.data.gov.uk/search?search=E07000114,Thanet District Council,21/02/2017,425810,60.14,,Safetyshop,SAF010,Operational Services,Revenue,"Repairs,  Alter & Mtce - Build",Health And Safety
http://statistics.data.gov.uk/search?search=E07000114,Thanet District Council,21/02/2017,425544,213.58,,Shoeless Joe Limited,SHO016,Community Services,Revenue,"Equip, Furniture And Materials",Stationery
http://statistics.data.gov.uk/search?search=E07000114,Thanet District Council,21/02/2017,426291,450.00,,Socitm Limited,SOC001,East Kent Shared Services,Revenue,Grants & Subscriptions,Financial Services
http://statistics.data.gov.uk/search?search=E07000114,Thanet District Council,21/02/2017,425904,650.00,,Stagecoach Services Limited,STA023,Corporate Resources and S151,Balance Sheet,Staff Bus Permits Holding A/C,Public Transport
http://statistics.data.gov.uk/search?search=E07000114,Thanet District Council,21/02/2017,425928,1757.40,,Studio Sam Causer Ltd,STU015,Corporate Resources and S151,Balance Sheet,Community Assets,Construction-Repair And Maint
http://statistics.data.gov.uk/search?search=E07000114,Thanet District Council,21/02/2017,419743,117379.40,,Swale Heating Ltd,SWA006,Corporate Resources and S151,Balance Sheet,Repairs And Mtce Holding A/C,Building Construction Material
http://statistics.data.gov.uk/search?search=E07000114,Thanet District Council,21/02/2017,426022,-1420.58,,Swale Heating Ltd,SWA006,Corporate Resources and S151,Balance Sheet,Repairs And Mtce Holding A/C,Building Construction Material
http://statistics.data.gov.uk/search?search=E07000114,Thanet District Council,21/02/2017,425057,5690.55,,Swl Rope Lifting & Testing Limited,SWL001,Operational Services,Revenue,"Repairs,  Alter & Mtce - Build",Maritime Services
http://statistics.data.gov.uk/search?search=E07000114,Thanet District Council,21/02/2017,425734,1890.20,,Tetlow King Planning Limited,TET002,Community Services,Revenue,Services,Consultancy
http://statistics.data.gov.uk/search?search=E07000114,Thanet District Council,21/02/2017,425675,3354.17,,The Glenwood Hotel,GLE007,Community Services,Revenue,Services,Housing Management
http://statistics.data.gov.uk/search?search=E07000114,Thanet District Council,21/02/2017,425676,2741.68,,The Glenwood Hotel,GLE007,Community Services,Revenue,Services,Housing Management
http://statistics.data.gov.uk/search?search=E07000114,Thanet District Council,21/02/2017,425677,2962.51,,The Glenwood Hotel,GLE007,Community Services,Revenue,Services,Housing Management
http://statistics.data.gov.uk/search?search=E07000114,Thanet District Council,21/02/2017,425678,2166.67,,The Glenwood Hotel,GLE007,Community Services,Revenue,Services,Housing Management
http://statistics.data.gov.uk/search?search=E07000114,Thanet District Council,21/02/2017,425938,300.00,,Thompsons Solicitors Llp,THO046,Community Services,Revenue,Services,Legal Services
http://statistics.data.gov.uk/search?search=E07000114,Thanet District Council,21/02/2017,426202,269.70,,Total Supplies Ltd,TOT009,Corporate Resources and S151,Balance Sheet,Cleaning & Domestic Supplies,Cleaning And Janitorial
http://statistics.data.gov.uk/search?search=E07000114,Thanet District Council,21/02/2017,426407,1526.50,,Trueden Disability Adaptations Ltd,TRU012,Corporate Resources and S151,Balance Sheet,Capital Exp-Non Council Assets,Grants
http://statistics.data.gov.uk/search?search=E07000114,Thanet District Council,21/02/2017,424866,1425.00,,Urban Surveying & Design Ltd,URB005,Corporate Resources and S151,Balance Sheet,Community Assets,Consultancy
http://statistics.data.gov.uk/search?search=E07000114,Thanet District Council,21/02/2017,425885,261.72,,Veolia Es (Uk) Ltd,VEO001,Operational Services,Revenue,Cleaning & Domestic Supplies,Environmental Services
http://statistics.data.gov.uk/search?search=E07000114,Thanet District Council,21/02/2017,425886,2026.80,,Veolia Es (Uk) Ltd,VEO001,Operational Services,Revenue,Cleaning & Domestic Supplies,Environmental Services
http://statistics.data.gov.uk/search?search=E07000114,Thanet District Council,21/02/2017,425720,1920.00,,Viridian Energy Solutions Limited,VIR005,Corporate Resources and S151,Balance Sheet,Repairs And Mtce Holding A/C,Facilities And Management Serv
http://statistics.data.gov.uk/search?search=E07000114,Thanet District Council,21/02/2017,423550,254.60,,Viridor Waste Management Ltd,VIR003,Corporate Governance,Revenue,Private Contractors,Environmental Services
http://statistics.data.gov.uk/search?search=E07000114,Thanet District Council,21/02/2017,425746,267.33,,Viridor Waste Management Ltd,VIR003,Corporate Governance,Revenue,Private Contractors,Environmental Services
http://statistics.data.gov.uk/search?search=E07000114,Thanet District Council,21/02/2017,425775,291.54,,Viridor Waste Management Ltd,VIR003,Corporate Governance,Revenue,Cleaning & Domestic Supplies,Environmental Services
http://statistics.data.gov.uk/search?search=E07000114,Thanet District Council,21/02/2017,425776,291.54,,Viridor Waste Management Ltd,VIR003,Corporate Governance,Revenue,Cleaning & Domestic Supplies,Environmental Services
http://statistics.data.gov.uk/search?search=E07000114,Thanet District Council,21/02/2017,425777,298.36,,Viridor Waste Management Ltd,VIR003,Corporate Governance,Revenue,Cleaning & Domestic Supplies,Environmental Services
http://statistics.data.gov.uk/search?search=E07000114,Thanet District Council,21/02/2017,425778,312.30,,Viridor Waste Management Ltd,VIR003,Corporate Governance,Revenue,Cleaning & Domestic Supplies,Environmental Services
http://statistics.data.gov.uk/search?search=E07000114,Thanet District Council,21/02/2017,425779,298.36,,Viridor Waste Management Ltd,VIR003,Corporate Governance,Revenue,Cleaning & Domestic Supplies,Environmental Services
http://statistics.data.gov.uk/search?search=E07000114,Thanet District Council,21/02/2017,425780,312.30,,Viridor Waste Management Ltd,VIR003,Corporate Governance,Revenue,Cleaning & Domestic Supplies,Environmental Services
http://statistics.data.gov.uk/search?search=E07000114,Thanet District Council,21/02/2017,425865,592.96,,Viridor Waste Management Ltd,VIR003,Corporate Governance,Revenue,Private Contractors,Environmental Services
http://statistics.data.gov.uk/search?search=E07000114,Thanet District Council,21/02/2017,425875,592.96,,Viridor Waste Management Ltd,VIR003,Corporate Governance,Revenue,Private Contractors,Environmental Services
http://statistics.data.gov.uk/search?search=E07000114,Thanet District Council,21/02/2017,426174,240.00,,Visit Kent Ltd,VIS005,Community Services,Revenue,Communications & Computing,Arts And Leisure Services
http://statistics.data.gov.uk/search?search=E07000114,Thanet District Council,21/02/2017,425731,330.00,,W Brazil & Bros,BRA001,Operational Services,Revenue,"Repairs,  Alter & Mtce - Build",Environmental Services
http://statistics.data.gov.uk/search?search=E07000114,Thanet District Council,21/02/2017,426173,340.00,,Wilks Head & Eve,WIL028,Corporate Resources and S151,Revenue,Services,Consultancy
http://statistics.data.gov.uk/search?search=E07000114,Thanet District Council,22/02/2017,425229,11408.00,,4global Consulting Limited,4GL001,Community Services,Revenue,Services,Financial Services
http://statistics.data.gov.uk/search?search=E07000114,Thanet District Council,22/02/2017,425771,1262.41,,Canon (Uk) Ltd,CAN021,Corporate Governance,Revenue,"Equip, Furniture And Materials",Facilities And Management Serv
http://statistics.data.gov.uk/search?search=E07000114,Thanet District Council,22/02/2017,426613,1942.46,,Canon (Uk) Ltd,CAN021,Corporate Governance,Revenue,"Equip, Furniture And Materials",Facilities And Management Serv
http://statistics.data.gov.uk/search?search=E07000114,Thanet District Council,22/02/2017,425302,1027.50,,Channel Commercials Plc,CCO001,Operational Services,Revenue,Direct Transport Costs,Vehicle Management
http://statistics.data.gov.uk/search?search=E07000114,Thanet District Council,22/02/2017,425791,2000.00,,Coastal Publications,COA018,Corporate Resources and S151,Revenue,Miscellaneous Expenses,Arts And Leisure Services
http://statistics.data.gov.uk/search?search=E07000114,Thanet District Council,22/02/2017,425391,483.00,,Dennis Eagle Ltd,DEN005,Operational Services,Revenue,Direct Transport Costs,Vehicle Management
http://statistics.data.gov.uk/search?search=E07000114,Thanet District Council,22/02/2017,425978,390.80,,Dennis Eagle Ltd,DEN005,Operational Services,Revenue,Direct Transport Costs,Vehicle Management
http://statistics.data.gov.uk/search?search=E07000114,Thanet District Council,22/02/2017,425356,108.84,,E Saunders Margate Ltd,SAU001,Community Services,Revenue,"Repairs,  Alter & Mtce - Build",Construction-Repair And Maint
http://statistics.data.gov.uk/search?search=E07000114,Thanet District Council,22/02/2017,425356,637.18,,E Saunders Margate Ltd,SAU001,Corporate Governance,Revenue,"Repairs,  Alter & Mtce - Build",Construction-Repair And Maint
http://statistics.data.gov.uk/search?search=E07000114,Thanet District Council,22/02/2017,425356,35.00,,E Saunders Margate Ltd,SAU001,Operational Services,Revenue,"Repairs,  Alter & Mtce - Build",Construction-Repair And Maint
http://statistics.data.gov.uk/search?search=E07000114,Thanet District Council,22/02/2017,425357,760.56,,E Saunders Margate Ltd,SAU001,Corporate Governance,Revenue,"Repairs,  Alter & Mtce - Build",Construction-Repair And Maint
http://statistics.data.gov.uk/search?search=E07000114,Thanet District Council,22/02/2017,425361,54.34,,E Saunders Margate Ltd,SAU001,Community Services,Revenue,"Repairs,  Alter & Mtce - Build",Construction-Repair And Maint
http://statistics.data.gov.uk/search?search=E07000114,Thanet District Council,22/02/2017,425361,570.38,,E Saunders Margate Ltd,SAU001,Corporate Governance,Revenue,"Repairs,  Alter & Mtce - Build",Construction-Repair And Maint
http://statistics.data.gov.uk/search?search=E07000114,Thanet District Council,22/02/2017,425361,48.30,,E Saunders Margate Ltd,SAU001,Operational Services,Revenue,"Repairs,  Alter & Mtce - Build",Construction-Repair And Maint
http://statistics.data.gov.uk/search?search=E07000114,Thanet District Council,22/02/2017,425362,247.49,,E.On,EON001,Community Services,Revenue,Energy Costs,Utilities
http://statistics.data.gov.uk/search?search=E07000114,Thanet District Council,22/02/2017,425308,220.00,,East Kent Components Ltd,EKC006,Operational Services,Revenue,Direct Transport Costs,Vehicle Management
http://statistics.data.gov.uk/search?search=E07000114,Thanet District Council,22/02/2017,425311,315.00,,East Kent Components Ltd,EKC006,Operational Services,Revenue,Direct Transport Costs,Vehicle Management
http://statistics.data.gov.uk/search?search=E07000114,Thanet District Council,22/02/2017,425314,240.00,,East Kent Components Ltd,EKC006,Operational Services,Revenue,Direct Transport Costs,Vehicle Management
http://statistics.data.gov.uk/search?search=E07000114,Thanet District Council,22/02/2017,425327,-315.00,,East Kent Components Ltd,EKC006,Operational Services,Revenue,Direct Transport Costs,Vehicle Management
http://statistics.data.gov.uk/search?search=E07000114,Thanet District Council,22/02/2017,425337,320.00,,East Kent Components Ltd,EKC006,Operational Services,Revenue,Direct Transport Costs,Vehicle Management
http://statistics.data.gov.uk/search?search=E07000114,Thanet District Council,22/02/2017,425338,440.00,,East Kent Components Ltd,EKC006,Operational Services,Revenue,Direct Transport Costs,Vehicle Management
http://statistics.data.gov.uk/search?search=E07000114,Thanet District Council,22/02/2017,425055,13526.16,,Facultatieve Technologies,FAC003,Operational Services,Revenue,"Repairs,  Alter & Mtce - Build",Cemetery And Crematorium
http://statistics.data.gov.uk/search?search=E07000114,Thanet District Council,22/02/2017,426611,4000.00,,Heath Lambert Limited (Client Money),HEA011,Corporate Resources and S151,Balance Sheet,Insurance Holding Account,Financial Services
http://statistics.data.gov.uk/search?search=E07000114,Thanet District Council,22/02/2017,425480,1341.62,,Hr Go (Kent) Ltd,HRG001,Operational Services,Revenue,Agency Staff,Human Resources
http://statistics.data.gov.uk/search?search=E07000114,Thanet District Council,22/02/2017,425482,442.89,,Hr Go (Kent) Ltd,HRG001,Operational Services,Revenue,Agency Staff,Human Resources
http://statistics.data.gov.uk/search?search=E07000114,Thanet District Council,22/02/2017,425483,807.32,,Hr Go (Kent) Ltd,HRG001,Operational Services,Revenue,Agency Staff,Human Resources
http://statistics.data.gov.uk/search?search=E07000114,Thanet District Council,22/02/2017,425484,1091.50,,Hr Go (Kent) Ltd,HRG001,Operational Services,Revenue,Agency Staff,Human Resources
http://statistics.data.gov.uk/search?search=E07000114,Thanet District Council,22/02/2017,425485,1091.50,,Hr Go (Kent) Ltd,HRG001,Operational Services,Revenue,Agency Staff,Human Resources
http://statistics.data.gov.uk/search?search=E07000114,Thanet District Council,22/02/2017,425783,9645.95,,Hr Go (Kent) Ltd,HRG001,Operational Services,Revenue,Agency Staff,Human Resources
http://statistics.data.gov.uk/search?search=E07000114,Thanet District Council,22/02/2017,425668,267.00,,Innovative Safety Systems Limited,INN002,Operational Services,Revenue,"Equip, Furniture And Materials",Vehicle Management
http://statistics.data.gov.uk/search?search=E07000114,Thanet District Council,22/02/2017,425717,249.50,,Kavanagh Motor Group Limited,KAV002,Operational Services,Revenue,Direct Transport Costs,Vehicle Management
http://statistics.data.gov.uk/search?search=E07000114,Thanet District Council,22/02/2017,425799,33444.16,,Kent County Council (Kcs),KCC003,Operational Services,Revenue,Direct Transport Costs,Facilities And Management Serv
http://statistics.data.gov.uk/search?search=E07000114,Thanet District Council,22/02/2017,426003,1711.91,,Kent County Council (Kcs),KCC003,Community Services,Revenue,Energy Costs,Facilities And Management Serv
http://statistics.data.gov.uk/search?search=E07000114,Thanet District Council,22/02/2017,426004,2135.44,,Kent County Council (Kcs),KCC003,Corporate Governance,Revenue,Energy Costs,Facilities And Management Serv
http://statistics.data.gov.uk/search?search=E07000114,Thanet District Council,22/02/2017,426005,285.29,,Kent County Council (Kcs),KCC003,Corporate Governance,Revenue,Energy Costs,Facilities And Management Serv
http://statistics.data.gov.uk/search?search=E07000114,Thanet District Council,22/02/2017,426007,712.47,,Kent County Council (Kcs),KCC003,Operational Services,Revenue,Energy Costs,Facilities And Management Serv
http://statistics.data.gov.uk/search?search=E07000114,Thanet District Council,22/02/2017,426008,1462.42,,Kent County Council (Kcs),KCC003,Corporate Governance,Revenue,Energy Costs,Facilities And Management Serv
http://statistics.data.gov.uk/search?search=E07000114,Thanet District Council,22/02/2017,426010,548.27,,Kent County Council (Kcs),KCC003,Operational Services,Revenue,Energy Costs,Facilities And Management Serv
http://statistics.data.gov.uk/search?search=E07000114,Thanet District Council,22/02/2017,426011,2086.71,,Kent County Council (Kcs),KCC003,Operational Services,Revenue,Energy Costs,Facilities And Management Serv
http://statistics.data.gov.uk/search?search=E07000114,Thanet District Council,22/02/2017,425246,602.14,,Morgan Jones Ltd,MOR001,Corporate Governance,Revenue,Agency Staff,Human Resources
http://statistics.data.gov.uk/search?search=E07000114,Thanet District Council,22/02/2017,425247,314.16,,Morgan Jones Ltd,MOR001,Corporate Governance,Revenue,Agency Staff,Human Resources
http://statistics.data.gov.uk/search?search=E07000114,Thanet District Council,22/02/2017,425801,314.16,,Morgan Jones Ltd,MOR001,Corporate Governance,Revenue,Agency Staff,Human Resources
http://statistics.data.gov.uk/search?search=E07000114,Thanet District Council,22/02/2017,425802,605.88,,Morgan Jones Ltd,MOR001,Corporate Governance,Revenue,Agency Staff,Human Resources
http://statistics.data.gov.uk/search?search=E07000114,Thanet District Council,22/02/2017,425388,970.00,,One 51 Es Plastics (Uk) Limited,ONE006,Operational Services,Revenue,"Equip, Furniture And Materials",Environmental Services
http://statistics.data.gov.uk/search?search=E07000114,Thanet District Council,22/02/2017,425813,3734.08,,One 51 Es Plastics (Uk) Limited,ONE006,Operational Services,Revenue,"Equip, Furniture And Materials",Environmental Services
http://statistics.data.gov.uk/search?search=E07000114,Thanet District Council,22/02/2017,425853,1140.36,,Southern Water,SWA001,Operational Services,Revenue,Water Services,Utilities
http://statistics.data.gov.uk/search?search=E07000114,Thanet District Council,22/02/2017,425855,569.96,,Southern Water,SWA001,Operational Services,Revenue,Water Services,Utilities
http://statistics.data.gov.uk/search?search=E07000114,Thanet District Council,22/02/2017,426241,412.08,,Southern Water,SWA001,Operational Services,Revenue,Water Services,Utilities
http://statistics.data.gov.uk/search?search=E07000114,Thanet District Council,22/02/2017,425977,418.00,,Tokheim Solutions Uk Limited,TOK002,Operational Services,Revenue,"Repairs,  Alter & Mtce - Build",Maritime Services
http://statistics.data.gov.uk/search?search=E07000114,Thanet District Council,23/02/2017,425282,1128.92,,Allstar Business Solutions Ltd,ALL038,Operational Services,Revenue,Direct Transport Costs,Vehicle Management
http://statistics.data.gov.uk/search?search=E07000114,Thanet District Council,23/02/2017,426354,1254.64,,Co-Operative Bank Paypoint,COO018,Corporate Resources and S151,Revenue,Services,Financial Services
http://statistics.data.gov.uk/search?search=E07000114,Thanet District Council,23/02/2017,426354,418.21,,Co-Operative Bank Paypoint,COO018,Community Services,Revenue,Services,Financial Services
http://statistics.data.gov.uk/search?search=E07000114,Thanet District Council,23/02/2017,426385,690102.00,,Maidstone Borough Council,MAI002,Corporate Resources and S151,Revenue,Revenue Financing,Various Cats-Public Sector
http://statistics.data.gov.uk/search?search=E07000114,Thanet District Council,23/02/2017,426385,240704.00,,Maidstone Borough Council,MAI002,Corporate Resources and S151,Balance Sheet,Collection Fund,Various Cats-Public Sector
http://statistics.data.gov.uk/search?search=E07000114,Thanet District Council,23/02/2017,426346,267.55,,Nat West Bank,NWE001,Corporate Resources and S151,Revenue,Services,Various Categories
http://statistics.data.gov.uk/search?search=E07000114,Thanet District Council,23/02/2017,426376,200.41,,Public Works Loan Board,PWL001,Corporate Resources and S151,Balance Sheet,Borrowing Repayable>1 Yr,Investments And Loans
http://statistics.data.gov.uk/search?search=E07000114,Thanet District Council,23/02/2017,426376,1167.91,,Public Works Loan Board,PWL001,Corporate Resources and S151,Balance Sheet,Debit Interest And Expenses,Investments And Loans
http://statistics.data.gov.uk/search?search=E07000114,Thanet District Council,23/02/2017,426382,15800.00,,Public Works Loan Board,PWL001,Corporate Resources and S151,Balance Sheet,Debit Interest And Expenses,Investments And Loans
http://statistics.data.gov.uk/search?search=E07000114,Thanet District Council,23/02/2017,426357,1379.57,,Santander,SAN017,Corporate Resources and S151,Revenue,Services,Various Categories
http://statistics.data.gov.uk/search?search=E07000114,Thanet District Council,23/02/2017,426357,459.86,,Santander,SAN017,Community Services,Revenue,Services,Various Categories
http://statistics.data.gov.uk/search?search=E07000114,Thanet District Council,23/02/2017,426360,658.16,,Santander,SAN017,Corporate Resources and S151,Revenue,Services,Various Categories
http://statistics.data.gov.uk/search?search=E07000114,Thanet District Council,23/02/2017,426716,-197192.00,,Secretary Of State,SEC003,Corporate Resources and S151,Revenue,Revenue Financing,Government Agencies
http://statistics.data.gov.uk/search?search=E07000114,Thanet District Council,23/02/2017,426716,1083259.00,,Secretary Of State,SEC003,Corporate Resources and S151,Balance Sheet,Collection Fund,Government Agencies
http://statistics.data.gov.uk/search?search=E07000114,Thanet District Council,23/02/2017,426361,303.34,,Worldpay Ltd,WOR008,Corporate Resources and S151,Revenue,Services,Financial Services
http://statistics.data.gov.uk/search?search=E07000114,Thanet District Council,23/02/2017,426367,2335.72,,Worldpay Ltd,WOR008,Corporate Resources and S151,Revenue,Services,Financial Services
http://statistics.data.gov.uk/search?search=E07000114,Thanet District Council,23/02/2017,426368,2072.65,,Worldpay Ltd,WOR008,Corporate Resources and S151,Revenue,Services,Financial Services
http://statistics.data.gov.uk/search?search=E07000114,Thanet District Council,27/02/2017,PC9244,23.98,,123 Reg.Co.Uk,N/A,Community Services,Revenue,Communications & Computing,ICT
http://statistics.data.gov.uk/search?search=E07000114,Thanet District Council,27/02/2017,PC9234,2.97,,Aldi,N/A,Operational Services,Revenue,Catering,Catering
http://statistics.data.gov.uk/search?search=E07000114,Thanet District Council,27/02/2017,PC9235,0.63,,Aldi,N/A,Operational Services,Revenue,Catering,Catering
http://statistics.data.gov.uk/search?search=E07000114,Thanet District Council,27/02/2017,PC9299,7.99,,Amazon Prime,N/A,Operational Services,Revenue,"Equip, Furniture And Materials",Stationery
http://statistics.data.gov.uk/search?search=E07000114,Thanet District Council,27/02/2017,PC9206,-7.99,,Amazon Uk Prime,N/A,Operational Services,Revenue,"Equip, Furniture And Materials",Stationery
http://statistics.data.gov.uk/search?search=E07000114,Thanet District Council,27/02/2017,PC9261,119.97,,Amazon Uk Retail,N/A,Community Services,Revenue,"Equip, Furniture And Materials",Stationery
http://statistics.data.gov.uk/search?search=E07000114,Thanet District Council,27/02/2017,PC9262,62.49,,Amazon Uk Retail,N/A,Community Services,Revenue,"Equip, Furniture And Materials",Stationery
http://statistics.data.gov.uk/search?search=E07000114,Thanet District Council,27/02/2017,PC9263,69.00,,Amazon Uk Retail,N/A,Community Services,Revenue,"Equip, Furniture And Materials",Stationery
http://statistics.data.gov.uk/search?search=E07000114,Thanet District Council,27/02/2017,PC9303,149.98,,Argos Ltd,N/A,Operational Services,Revenue,"Equip, Furniture And Materials",Facilities And Management Serv
http://statistics.data.gov.uk/search?search=E07000114,Thanet District Council,27/02/2017,PC9167,123.49,,Booker Ltd,N/A,Operational Services,Revenue,Catering,Catering
http://statistics.data.gov.uk/search?search=E07000114,Thanet District Council,27/02/2017,PC9168,38.52,,Booker Ltd,N/A,Corporate Governance,Revenue,Catering,Catering
http://statistics.data.gov.uk/search?search=E07000114,Thanet District Council,27/02/2017,PC9175,17.38,,Booker Ltd,N/A,Chief Executive,Revenue,Catering,Catering
http://statistics.data.gov.uk/search?search=E07000114,Thanet District Council,27/02/2017,PC9236,44.63,,Booker Ltd,N/A,Corporate Governance,Revenue,Catering,Catering
http://statistics.data.gov.uk/search?search=E07000114,Thanet District Council,27/02/2017,PC9237,53.53,,Booker Ltd,N/A,Corporate Governance,Revenue,Catering,Catering
http://statistics.data.gov.uk/search?search=E07000114,Thanet District Council,27/02/2017,PC9246,23.28,,Booker Ltd,N/A,Community Services,Revenue,Catering,Catering
http://statistics.data.gov.uk/search?search=E07000114,Thanet District Council,27/02/2017,PC9247,8.99,,Booker Ltd,N/A,Chief Executive,Revenue,Catering,Catering
http://statistics.data.gov.uk/search?search=E07000114,Thanet District Council,27/02/2017,PC9248,6.79,,Booker Ltd,N/A,Corporate Governance,Revenue,Catering,Catering
http://statistics.data.gov.uk/search?search=E07000114,Thanet District Council,27/02/2017,PC9285,181.92,,Canterbury Cathedral,N/A,East Kent Shared Services,Revenue,Catering,Human Resources
http://statistics.data.gov.uk/search?search=E07000114,Thanet District Council,27/02/2017,PC9171,49.21,,Cartridgesave,N/A,Operational Services,Revenue,"Equip, Furniture And Materials",Stationery
http://statistics.data.gov.uk/search?search=E07000114,Thanet District Council,27/02/2017,PC9173,328.19,,Cartridgesave,N/A,Operational Services,Revenue,"Equip, Furniture And Materials",Stationery
http://statistics.data.gov.uk/search?search=E07000114,Thanet District Council,27/02/2017,PC9174,390.96,,Cartridgesave,N/A,Operational Services,Revenue,"Equip, Furniture And Materials",Stationery
http://statistics.data.gov.uk/search?search=E07000114,Thanet District Council,27/02/2017,PC9188,149.99,,Currys,N/A,Corporate Governance,Revenue,"Equip, Furniture And Materials",Facilities And Management Serv
http://statistics.data.gov.uk/search?search=E07000114,Thanet District Council,27/02/2017,PC9291,37.50,,Debenhams.Com,N/A,Community Services,Revenue,"Clothes, Uniforms & Laundry",Facilities And Management Serv
http://statistics.data.gov.uk/search?search=E07000114,Thanet District Council,27/02/2017,PC9292,-37.50,,Debenhams.Com,N/A,Community Services,Revenue,"Clothes, Uniforms & Laundry",Facilities And Management Serv
http://statistics.data.gov.uk/search?search=E07000114,Thanet District Council,27/02/2017,PC9256,189.12,,Dmarc Analyzer,N/A,East Kent Shared Services,Revenue,Communications & Computing,ICT
http://statistics.data.gov.uk/search?search=E07000114,Thanet District Council,27/02/2017,PC9210,232.50,,DVLA Vehicle Tax,N/A,Operational Services,Revenue,Direct Transport Costs,Various Cats - Public Sector
http://statistics.data.gov.uk/search?search=E07000114,Thanet District Council,27/02/2017,PC9211,167.50,,DVLA Vehicle Tax,N/A,Operational Services,Revenue,Direct Transport Costs,Various Cats - Public Sector
http://statistics.data.gov.uk/search?search=E07000114,Thanet District Council,27/02/2017,PC9212,202.50,,DVLA Vehicle Tax,N/A,Operational Services,Revenue,Direct Transport Costs,Various Cats - Public Sector
http://statistics.data.gov.uk/search?search=E07000114,Thanet District Council,27/02/2017,PC9213,232.50,,DVLA Vehicle Tax,N/A,Operational Services,Revenue,Direct Transport Costs,Various Cats - Public Sector
http://statistics.data.gov.uk/search?search=E07000114,Thanet District Council,27/02/2017,PC9270,249.00,,Eb Artificial Intelli,N/A,East Kent Shared Services,Revenue,Expenses,Human Resources
http://statistics.data.gov.uk/search?search=E07000114,Thanet District Council,27/02/2017,PC9269,390.00,,Enterprise Events Ltd,N/A,East Kent Shared Services,Revenue,Expenses,Human Resources
http://statistics.data.gov.uk/search?search=E07000114,Thanet District Council,27/02/2017,PC9226,75.89,,Facebook,N/A,Community Services,Revenue,Miscellaneous Expenses,Facilities And Management Serv
http://statistics.data.gov.uk/search?search=E07000114,Thanet District Council,27/02/2017,PC9227,16.18,,Facebook,N/A,Corporate Resources and S151,Revenue,Miscellaneous Expenses,Facilities And Management Serv
http://statistics.data.gov.uk/search?search=E07000114,Thanet District Council,27/02/2017,PC9228,2.74,,Facebook,N/A,Community Services,Revenue,Miscellaneous Expenses,Facilities And Management Serv
http://statistics.data.gov.uk/search?search=E07000114,Thanet District Council,27/02/2017,PC9229,0.42,,Facebook,N/A,Community Services,Revenue,Miscellaneous Expenses,Facilities And Management Serv
http://statistics.data.gov.uk/search?search=E07000114,Thanet District Council,27/02/2017,PC9230,147.17,,Facebook,N/A,Community Services,Revenue,Miscellaneous Expenses,Facilities And Management Serv
http://statistics.data.gov.uk/search?search=E07000114,Thanet District Council,27/02/2017,PC9231,4.77,,Facebook Ireland Limited,N/A,East Kent Shared Services,Revenue,"Print, Stat And Gen Off Exps",Facilities And Management Serv
http://statistics.data.gov.uk/search?search=E07000114,Thanet District Council,27/02/2017,PC9279,1203.00,,Hmcts-Kent099,N/A,East Kent Shared Services,Revenue,Services,Various Cats - Public Sector
http://statistics.data.gov.uk/search?search=E07000114,Thanet District Council,27/02/2017,PC9280,1416.00,,Hmcts-Kent099,N/A,East Kent Shared Services,Revenue,Services,Various Cats - Public Sector
http://statistics.data.gov.uk/search?search=E07000114,Thanet District Council,27/02/2017,PC9281,675.00,,Hmcts-Kent099,N/A,East Kent Shared Services,Revenue,Services,Various Cats - Public Sector
http://statistics.data.gov.uk/search?search=E07000114,Thanet District Council,27/02/2017,PC9282,114.00,,Hmcts-Kent099,N/A,East Kent Shared Services,Revenue,Services,Various Cats - Public Sector
http://statistics.data.gov.uk/search?search=E07000114,Thanet District Council,27/02/2017,PC9283,108.00,,Hmcts-Kent099,N/A,East Kent Shared Services,Revenue,Services,Various Cats - Public Sector
http://statistics.data.gov.uk/search?search=E07000114,Thanet District Council,27/02/2017,PC9284,153.00,,Hmcts-Kent099,N/A,East Kent Shared Services,Revenue,Services,Various Cats - Public Sector
http://statistics.data.gov.uk/search?search=E07000114,Thanet District Council,27/02/2017,PC9257,150.00,,Jik Software Ltd,N/A,East Kent Shared Services,Revenue,Communications & Computing,Facilities And Management Serv
http://statistics.data.gov.uk/search?search=E07000114,Thanet District Council,27/02/2017,PC9275,-21.70,,Liberty Inns Uk Ltd,N/A,Chief Executive,Revenue,Catering,Human Resources
http://statistics.data.gov.uk/search?search=E07000114,Thanet District Council,27/02/2017,PC9218,124.60,,London & South Eastern,N/A,Community Services,Revenue,Public Transport,Human Resources
http://statistics.data.gov.uk/search?search=E07000114,Thanet District Council,27/02/2017,PC9220,-114.60,,London & South Eastern,N/A,Community Services,Revenue,Public Transport,Human Resources
http://statistics.data.gov.uk/search?search=E07000114,Thanet District Council,27/02/2017,PC9221,72.40,,London & South Eastern,N/A,Chief Executive,Revenue,Public Transport,Human Resources
http://statistics.data.gov.uk/search?search=E07000114,Thanet District Council,27/02/2017,PC9249,83.40,,London & South Eastern,N/A,Corporate Resources and S151,Revenue,Expenses,Human Resources
http://statistics.data.gov.uk/search?search=E07000114,Thanet District Council,27/02/2017,PC9199,37.30,,London & Southeastern,N/A,Chief Executive,Revenue,Public Transport,Human Resources
http://statistics.data.gov.uk/search?search=E07000114,Thanet District Council,27/02/2017,PC9200,67.90,,London & Southeastern,N/A,Corporate Resources and S151,Revenue,Public Transport,Human Resources
http://statistics.data.gov.uk/search?search=E07000114,Thanet District Council,27/02/2017,PC9201,237.30,,London & Southeastern,N/A,Operational Services,Revenue,Public Transport,Human Resources
http://statistics.data.gov.uk/search?search=E07000114,Thanet District Council,27/02/2017,PC9202,67.90,,London & Southeastern,N/A,Corporate Resources and S151,Revenue,Public Transport,Human Resources
http://statistics.data.gov.uk/search?search=E07000114,Thanet District Council,27/02/2017,PC9222,20.90,,London & Southeastern,N/A,Community Services,Revenue,Public Transport,Human Resources
http://statistics.data.gov.uk/search?search=E07000114,Thanet District Council,27/02/2017,PC9267,79.10,,London & Southeastern,N/A,Corporate Resources and S151,Revenue,Public Transport,Human Resources
http://statistics.data.gov.uk/search?search=E07000114,Thanet District Council,27/02/2017,PC9287,115.00,,Malmaison.Com,N/A,East Kent Shared Services,Revenue,Catering,Human Resources
http://statistics.data.gov.uk/search?search=E07000114,Thanet District Council,27/02/2017,PC9172,13.24,,Maplin,N/A,Operational Services,Revenue,"Equip, Furniture And Materials",Building Construction Material
http://statistics.data.gov.uk/search?search=E07000114,Thanet District Council,27/02/2017,PC9253,17.40,,Marinescene.Co.Uk,N/A,Operational Services,Revenue,"Equip, Furniture And Materials",Domestic Goods
http://statistics.data.gov.uk/search?search=E07000114,Thanet District Council,27/02/2017,PC9255,101.50,,Parkingeye.Co.Uk,N/A,Operational Services,Revenue,"Equip, Furniture And Materials",Street & Traffic Management
http://statistics.data.gov.uk/search?search=E07000114,Thanet District Council,27/02/2017,PC9239,31.95,,Pasthorizon,N/A,Operational Services,Revenue,"Equip, Furniture And Materials",Building Construction Material
http://statistics.data.gov.uk/search?search=E07000114,Thanet District Council,27/02/2017,PC9276,445.00,,Pmgltd,N/A,Corporate Resources and S151,Revenue,Expenses,Human Resources
http://statistics.data.gov.uk/search?search=E07000114,Thanet District Council,27/02/2017,PC9302,84.11,14.02,Police-Supplies.Co.Uk,N/A,Operational Services,Revenue,"Equip, Furniture And Materials",Environmental Services
http://statistics.data.gov.uk/search?search=E07000114,Thanet District Council,27/02/2017,PC9169,121.00,,Possessionclaim.Gov,N/A,Community Services,Revenue,Services,Various Cats - Public Sector
http://statistics.data.gov.uk/search?search=E07000114,Thanet District Council,27/02/2017,PC9190,325.00,,Possessionclaim.Gov,N/A,Community Services,Revenue,Services,Various Cats - Public Sector
http://statistics.data.gov.uk/search?search=E07000114,Thanet District Council,27/02/2017,PC9191,325.00,,Possessionclaim.Gov,N/A,Community Services,Revenue,Services,Various Cats - Public Sector
http://statistics.data.gov.uk/search?search=E07000114,Thanet District Council,27/02/2017,PC9193,325.00,,Possessionclaim.Gov,N/A,Community Services,Revenue,Services,Various Cats - Public Sector
http://statistics.data.gov.uk/search?search=E07000114,Thanet District Council,27/02/2017,PC9194,325.00,,Possessionclaim.Gov,N/A,Community Services,Revenue,Services,Various Cats - Public Sector
http://statistics.data.gov.uk/search?search=E07000114,Thanet District Council,27/02/2017,PC9195,325.00,,Possessionclaim.Gov,N/A,Community Services,Revenue,Services,Various Cats - Public Sector
http://statistics.data.gov.uk/search?search=E07000114,Thanet District Council,27/02/2017,PC9197,325.00,,Possessionclaim.Gov,N/A,Community Services,Revenue,Services,Various Cats - Public Sector
http://statistics.data.gov.uk/search?search=E07000114,Thanet District Council,27/02/2017,PC9203,325.00,,Possessionclaim.Gov,N/A,Community Services,Revenue,Services,Various Cats - Public Sector
http://statistics.data.gov.uk/search?search=E07000114,Thanet District Council,27/02/2017,PC9204,121.00,,Possessionclaim.Gov,N/A,Community Services,Revenue,Services,Various Cats - Public Sector
http://statistics.data.gov.uk/search?search=E07000114,Thanet District Council,27/02/2017,PC9208,325.00,,Possessionclaim.Gov,N/A,Community Services,Revenue,Services,Various Cats - Public Sector
http://statistics.data.gov.uk/search?search=E07000114,Thanet District Council,27/02/2017,PC9209,325.00,,Possessionclaim.Gov,N/A,Community Services,Revenue,Services,Various Cats - Public Sector
http://statistics.data.gov.uk/search?search=E07000114,Thanet District Council,27/02/2017,PC9241,325.00,,Possessionclaim.Gov,N/A,Community Services,Revenue,Services,Various Cats - Public Sector
http://statistics.data.gov.uk/search?search=E07000114,Thanet District Council,27/02/2017,PC9242,325.00,,Possessionclaim.Gov,N/A,Community Services,Revenue,Services,Various Cats - Public Sector
http://statistics.data.gov.uk/search?search=E07000114,Thanet District Council,27/02/2017,PC9243,325.00,,Possessionclaim.Gov,N/A,Community Services,Revenue,Services,Various Cats - Public Sector
http://statistics.data.gov.uk/search?search=E07000114,Thanet District Council,27/02/2017,PC9258,325.00,,Possessionclaim.Gov,N/A,Community Services,Revenue,Services,Various Cats - Public Sector
http://statistics.data.gov.uk/search?search=E07000114,Thanet District Council,27/02/2017,PC9216,110.00,,Premier Inn,N/A,Corporate Governance,Revenue,Expenses,Human Resources
http://statistics.data.gov.uk/search?search=E07000114,Thanet District Council,27/02/2017,PC9286,215.42,,Premier Inn,N/A,East Kent Shared Services,Revenue,Catering,Human Resources
http://statistics.data.gov.uk/search?search=E07000114,Thanet District Council,27/02/2017,PC9289,-46.25,,Premier Inn Chichester,N/A,Community Services,Revenue,Expenses,Human Resources
http://statistics.data.gov.uk/search?search=E07000114,Thanet District Council,27/02/2017,PC9290,-44.58,,Premier Inn Chichester,N/A,Community Services,Revenue,Expenses,Human Resources
http://statistics.data.gov.uk/search?search=E07000114,Thanet District Council,27/02/2017,PC9254,140.00,,Quarterman Windscreen,N/A,Operational Services,Revenue,Direct Transport Costs,Vehicle Management
http://statistics.data.gov.uk/search?search=E07000114,Thanet District Council,27/02/2017,PC9196,162.00,27.00,RH Environmental Ltd,N/A,Community Services,Revenue,Training,Human Resources
http://statistics.data.gov.uk/search?search=E07000114,Thanet District Council,27/02/2017,PC9301,21.80,3.64,Sainsburys,N/A,Corporate Governance,Revenue,Catering,Catering
http://statistics.data.gov.uk/search?search=E07000114,Thanet District Council,27/02/2017,PC9207,45.10,,Southeastern Web,N/A,Community Services,Revenue,Training,Human Resources
http://statistics.data.gov.uk/search?search=E07000114,Thanet District Council,27/02/2017,PC9264,118.10,,Southeastern Web,N/A,Corporate Governance,Revenue,Public Transport,Human Resources
http://statistics.data.gov.uk/search?search=E07000114,Thanet District Council,27/02/2017,PC9265,135.00,,Southeastern Web,N/A,Corporate Governance,Revenue,Public Transport,Human Resources
http://statistics.data.gov.uk/search?search=E07000114,Thanet District Council,27/02/2017,PC9266,92.00,,Southeastern Web,N/A,East Kent Shared Services,Revenue,Public Transport,Human Resources
http://statistics.data.gov.uk/search?search=E07000114,Thanet District Council,27/02/2017,PC9268,79.10,,Southeastern Web,N/A,Corporate Resources and S151,Revenue,Public Transport,Human Resources
http://statistics.data.gov.uk/search?search=E07000114,Thanet District Council,27/02/2017,PC9271,162.20,,Southeastern Web,N/A,Community Services,Revenue,Public Transport,Human Resources
http://statistics.data.gov.uk/search?search=E07000114,Thanet District Council,27/02/2017,PC9272,46.30,,Southeastern Web,N/A,Corporate Governance,Revenue,Public Transport,Human Resources
http://statistics.data.gov.uk/search?search=E07000114,Thanet District Council,27/02/2017,PC9224,18.71,,Tesco Pfs,N/A,Corporate Governance,Revenue,"Repairs,  Alter & Mtce - Build",Catering
http://statistics.data.gov.uk/search?search=E07000114,Thanet District Council,27/02/2017,PC9233,19.52,,Tesco Pfs,N/A,Corporate Governance,Revenue,"Repairs,  Alter & Mtce - Build",Catering
http://statistics.data.gov.uk/search?search=E07000114,Thanet District Council,27/02/2017,PC9238,18.97,,Tesco Pfs,N/A,Corporate Governance,Revenue,"Repairs,  Alter & Mtce - Build",Catering
http://statistics.data.gov.uk/search?search=E07000114,Thanet District Council,27/02/2017,PC9240,19.72,,Tesco Pfs,N/A,Corporate Governance,Revenue,"Repairs,  Alter & Mtce - Build",Catering
http://statistics.data.gov.uk/search?search=E07000114,Thanet District Council,27/02/2017,PC9245,19.43,,Tesco Pfs,N/A,Corporate Governance,Revenue,"Repairs,  Alter & Mtce - Build",Catering
http://statistics.data.gov.uk/search?search=E07000114,Thanet District Council,27/02/2017,PC9252,19.23,,Tesco Pfs,N/A,Corporate Governance,Revenue,"Repairs,  Alter & Mtce - Build",Catering
http://statistics.data.gov.uk/search?search=E07000114,Thanet District Council,27/02/2017,PC9259,19.18,,Tesco Pfs,N/A,Corporate Governance,Revenue,"Repairs,  Alter & Mtce - Build",Catering
http://statistics.data.gov.uk/search?search=E07000114,Thanet District Council,27/02/2017,PC9260,19.40,,Tesco Pfs,N/A,Corporate Governance,Revenue,"Repairs,  Alter & Mtce - Build",Catering
http://statistics.data.gov.uk/search?search=E07000114,Thanet District Council,27/02/2017,PC9198,355.00,,Thanet County Court,N/A,Community Services,Revenue,Services,Various Cats - Public Sector
http://statistics.data.gov.uk/search?search=E07000114,Thanet District Council,27/02/2017,PC9223,60.00,,The Happy Dolphin,N/A,Community Services,Revenue,Grants & Subscriptions,Human Resources
http://statistics.data.gov.uk/search?search=E07000114,Thanet District Council,27/02/2017,PC9250,65.00,,The Happy Dolphin,N/A,Community Services,Revenue,Grants & Subscriptions,Human Resources
http://statistics.data.gov.uk/search?search=E07000114,Thanet District Council,27/02/2017,PC9251,-65.00,,The Happy Dolphin,N/A,Community Services,Revenue,Grants & Subscriptions,Human Resources
http://statistics.data.gov.uk/search?search=E07000114,Thanet District Council,27/02/2017,PC9219,27.42,,The Oak Hotel,N/A,Community Services,Revenue,Catering,Catering
http://statistics.data.gov.uk/search?search=E07000114,Thanet District Council,27/02/2017,PC9192,40.00,,Thomson Reuters,N/A,Community Services,Revenue,"Print, Stat And Gen Off Exps",Facilities And Management Serv
http://statistics.data.gov.uk/search?search=E07000114,Thanet District Council,27/02/2017,PC9225,71.67,,Travelodge,N/A,Community Services,Revenue,Grants & Subscriptions,Human Resources
http://statistics.data.gov.uk/search?search=E07000114,Thanet District Council,27/02/2017,PC9278,34.85,,VS Security Products Lash,N/A,East Kent Shared Services,Revenue,Communications & Computing,ICT
http://statistics.data.gov.uk/search?search=E07000114,Thanet District Council,27/02/2017,PC9217,29.00,,Wildy Virtual Terminal,N/A,Community Services,Revenue,"Print, Stat And Gen Off Exps",Stationery
http://statistics.data.gov.uk/search?search=E07000114,Thanet District Council,27/02/2017,PC9232,-25.00,,Zen.Co.Uk,N/A,Operational Services,Revenue,Communications & Computing,ICT
http://statistics.data.gov.uk/search?search=E07000114,Thanet District Council,27/02/2017,PC9288,30.79,,Zen.Co.Uk,N/A,East Kent Shared Services,Revenue,Communications & Computing,ICT
http://statistics.data.gov.uk/search?search=E07000114,Thanet District Council,28/02/2017,425953,668.49,,Aebi Schmidt Uk Limited,AEB002,Operational Services,Revenue,Direct Transport Costs,Vehicle Management
http://statistics.data.gov.uk/search?search=E07000114,Thanet District Council,28/02/2017,426176,3813.05,,Albion Fencing&Construction Kent Ltd,ALB005,Operational Services,Revenue,"Repairs,  Alter & Mtce - Build",Building Construction Material
http://statistics.data.gov.uk/search?search=E07000114,Thanet District Council,28/02/2017,426294,452.31,,Albion Fencing&Construction Kent Ltd,ALB005,Operational Services,Revenue,"Repairs,  Alter & Mtce - Build",Building Construction Material
http://statistics.data.gov.uk/search?search=E07000114,Thanet District Council,28/02/2017,426636,2525.00,,All About Asbestos Limited,ALL044,Corporate Governance,Revenue,"Repairs,  Alter & Mtce - Build",Environmental Services
http://statistics.data.gov.uk/search?search=E07000114,Thanet District Council,28/02/2017,425818,434.80,,All Access Ltd,ALL031,Corporate Resources and S151,Balance Sheet,Rechargeable Works,Building Construction Material
http://statistics.data.gov.uk/search?search=E07000114,Thanet District Council,28/02/2017,425991,650.00,,Als Civil Engineers Ltd,ALS002,Operational Services,Revenue,"Repairs,  Alter & Mtce - Build",Construction-Repair And Maint
http://statistics.data.gov.uk/search?search=E07000114,Thanet District Council,28/02/2017,426175,250.00,,Arvato Limited,ARV002,East Kent Shared Services,Revenue,Expenses,Human Resources
http://statistics.data.gov.uk/search?search=E07000114,Thanet District Council,28/02/2017,425949,3123.83,,Ats Euromaster Ltd,ATS002,Operational Services,Revenue,Direct Transport Costs,Vehicle Management
http://statistics.data.gov.uk/search?search=E07000114,Thanet District Council,28/02/2017,426312,87524.01,,Axis Europe Plc,AXI001,Corporate Resources and S151,Balance Sheet,Council Dwellings,Construction-Repair And Maint
http://statistics.data.gov.uk/search?search=E07000114,Thanet District Council,28/02/2017,426348,751.14,,Bpi Recycled Products,BPI002,Operational Services,Revenue,"Equip, Furniture And Materials",Environmental Services
http://statistics.data.gov.uk/search?search=E07000114,Thanet District Council,28/02/2017,426951,7758.21,,Bramling Construction Ltd,BRA020,Corporate Resources and S151,Balance Sheet,Capital Exp-Non Council Assets,Grants
http://statistics.data.gov.uk/search?search=E07000114,Thanet District Council,28/02/2017,426953,6857.05,,Bramling Construction Ltd,BRA020,Corporate Resources and S151,Balance Sheet,Capital Exp-Non Council Assets,Grants
http://statistics.data.gov.uk/search?search=E07000114,Thanet District Council,28/02/2017,425798,513.00,,Burgess Marine Ltd,BUR017,Operational Services,Revenue,"Repairs,  Alter & Mtce - Build",Maritime Services
http://statistics.data.gov.uk/search?search=E07000114,Thanet District Council,28/02/2017,426412,1464.00,,Burgess Marine Ltd,BUR017,Operational Services,Revenue,"Equip, Furniture And Materials",Maritime Services
http://statistics.data.gov.uk/search?search=E07000114,Thanet District Council,28/02/2017,426459,9045.50,,Capita Business Services Ltd,CAP001,East Kent Housing,Revenue,Communications & Computing,Human Resources
http://statistics.data.gov.uk/search?search=E07000114,Thanet District Council,28/02/2017,425812,341.86,,Castle Automotive & Eng Supp Ltd,CAS024,Operational Services,Revenue,"Equip, Furniture And Materials",Vehicle Management
http://statistics.data.gov.uk/search?search=E07000114,Thanet District Council,28/02/2017,426273,1128.00,,Cfh Docmail Ltd,CFH001,East Kent Shared Services,Revenue,"Print, Stat And Gen Off Exps",Facilities And Management Serv
http://statistics.data.gov.uk/search?search=E07000114,Thanet District Council,28/02/2017,426275,1128.00,,Cfh Docmail Ltd,CFH001,East Kent Shared Services,Revenue,"Print, Stat And Gen Off Exps",Facilities And Management Serv
http://statistics.data.gov.uk/search?search=E07000114,Thanet District Council,28/02/2017,426277,902.40,,Cfh Docmail Ltd,CFH001,East Kent Shared Services,Revenue,"Print, Stat And Gen Off Exps",Facilities And Management Serv
http://statistics.data.gov.uk/search?search=E07000114,Thanet District Council,28/02/2017,426322,336.00,,Cfh Docmail Ltd,CFH001,East Kent Shared Services,Revenue,"Print, Stat And Gen Off Exps",Facilities And Management Serv
http://statistics.data.gov.uk/search?search=E07000114,Thanet District Council,28/02/2017,426323,420.00,,Cfh Docmail Ltd,CFH001,East Kent Shared Services,Revenue,"Print, Stat And Gen Off Exps",Facilities And Management Serv
http://statistics.data.gov.uk/search?search=E07000114,Thanet District Council,28/02/2017,426389,420.00,,Cfh Docmail Ltd,CFH001,East Kent Shared Services,Revenue,"Print, Stat And Gen Off Exps",Facilities And Management Serv
http://statistics.data.gov.uk/search?search=E07000114,Thanet District Council,28/02/2017,425992,685.00,,Chapel Print Limited,CHA069,Operational Services,Revenue,Miscellaneous Expenses,Stationery
http://statistics.data.gov.uk/search?search=E07000114,Thanet District Council,28/02/2017,426767,1650.00,,Cieh,CIE001,Community Services,Revenue,Miscellaneous Expenses,Human Resources
http://statistics.data.gov.uk/search?search=E07000114,Thanet District Council,28/02/2017,425905,2220.00,,Civica Uk Ltd,CIV003,East Kent Shared Services,Revenue,Communications & Computing,ICT
http://statistics.data.gov.uk/search?search=E07000114,Thanet District Council,28/02/2017,425906,1520.00,,Civica Uk Ltd,CIV003,East Kent Shared Services,Revenue,Communications & Computing,ICT
http://statistics.data.gov.uk/search?search=E07000114,Thanet District Council,28/02/2017,425907,2475.00,,Civica Uk Ltd,CIV003,East Kent Shared Services,Revenue,Communications & Computing,ICT
http://statistics.data.gov.uk/search?search=E07000114,Thanet District Council,28/02/2017,426260,900.00,,Civica Uk Ltd,CIV003,East Kent Shared Services,Revenue,Communications & Computing,ICT
http://statistics.data.gov.uk/search?search=E07000114,Thanet District Council,28/02/2017,426261,1632.00,,Civica Uk Ltd,CIV003,East Kent Shared Services,Revenue,Communications & Computing,ICT
http://statistics.data.gov.uk/search?search=E07000114,Thanet District Council,28/02/2017,426262,2054.28,,Civica Uk Ltd,CIV003,East Kent Shared Services,Revenue,Communications & Computing,ICT
http://statistics.data.gov.uk/search?search=E07000114,Thanet District Council,28/02/2017,426263,1973.70,,Civica Uk Ltd,CIV003,East Kent Shared Services,Revenue,Communications & Computing,ICT
http://statistics.data.gov.uk/search?search=E07000114,Thanet District Council,28/02/2017,426264,1173.00,,Civica Uk Ltd,CIV003,East Kent Shared Services,Revenue,Communications & Computing,ICT
http://statistics.data.gov.uk/search?search=E07000114,Thanet District Council,28/02/2017,426265,1428.00,,Civica Uk Ltd,CIV003,East Kent Shared Services,Revenue,Communications & Computing,ICT
http://statistics.data.gov.uk/search?search=E07000114,Thanet District Council,28/02/2017,426266,1428.00,,Civica Uk Ltd,CIV003,East Kent Shared Services,Revenue,Communications & Computing,ICT
http://statistics.data.gov.uk/search?search=E07000114,Thanet District Council,28/02/2017,426267,1232.57,,Civica Uk Ltd,CIV003,East Kent Shared Services,Revenue,Communications & Computing,ICT
http://statistics.data.gov.uk/search?search=E07000114,Thanet District Council,28/02/2017,426268,770.36,,Civica Uk Ltd,CIV003,East Kent Shared Services,Revenue,Communications & Computing,ICT
http://statistics.data.gov.uk/search?search=E07000114,Thanet District Council,28/02/2017,426269,1027.14,,Civica Uk Ltd,CIV003,East Kent Shared Services,Revenue,Communications & Computing,ICT
http://statistics.data.gov.uk/search?search=E07000114,Thanet District Council,28/02/2017,426270,1920.15,,Civica Uk Ltd,CIV003,East Kent Shared Services,Revenue,Communications & Computing,ICT
http://statistics.data.gov.uk/search?search=E07000114,Thanet District Council,28/02/2017,426328,1000.00,,Concordia Occupational Health Ltd,CON051,Operational Services,Revenue,Services,Healthcare
http://statistics.data.gov.uk/search?search=E07000114,Thanet District Council,28/02/2017,426016,420.00,,Connaught Hotel Dover Limited,CON046,Community Services,Revenue,Services,Housing Management
http://statistics.data.gov.uk/search?search=E07000114,Thanet District Council,28/02/2017,426017,420.00,,Connaught Hotel Dover Limited,CON046,Community Services,Revenue,Services,Housing Management
http://statistics.data.gov.uk/search?search=E07000114,Thanet District Council,28/02/2017,426018,980.00,,Connaught Hotel Dover Limited,CON046,Community Services,Revenue,Services,Housing Management
http://statistics.data.gov.uk/search?search=E07000114,Thanet District Council,28/02/2017,426946,10246.89,,Cure Developments Limited,CUR005,Corporate Resources and S151,Balance Sheet,Capital Exp-Non Council Assets,Grants
http://statistics.data.gov.uk/search?search=E07000114,Thanet District Council,28/02/2017,425920,654.68,,Dennis Eagle Ltd,DEN005,Operational Services,Revenue,Direct Transport Costs,Vehicle Management
http://statistics.data.gov.uk/search?search=E07000114,Thanet District Council,28/02/2017,425921,250.00,,Dennis Eagle Ltd,DEN005,Operational Services,Revenue,Direct Transport Costs,Vehicle Management
http://statistics.data.gov.uk/search?search=E07000114,Thanet District Council,28/02/2017,425946,308.60,,Dennis Eagle Ltd,DEN005,Operational Services,Revenue,Direct Transport Costs,Vehicle Management
http://statistics.data.gov.uk/search?search=E07000114,Thanet District Council,28/02/2017,426191,266.50,,Dennis Eagle Ltd,DEN005,Operational Services,Revenue,Direct Transport Costs,Vehicle Management
http://statistics.data.gov.uk/search?search=E07000114,Thanet District Council,28/02/2017,426311,3467.22,,Dennis Eagle Ltd,DEN005,Operational Services,Revenue,Direct Transport Costs,Vehicle Management
http://statistics.data.gov.uk/search?search=E07000114,Thanet District Council,28/02/2017,426356,2072.10,,E Saunders Margate Ltd,SAU001,Operational Services,Revenue,"Repairs,  Alter & Mtce - Build",Construction-Repair And Maint
http://statistics.data.gov.uk/search?search=E07000114,Thanet District Council,28/02/2017,426443,234.60,,E.On,EON001,Community Services,Revenue,Energy Costs,Utilities
http://statistics.data.gov.uk/search?search=E07000114,Thanet District Council,28/02/2017,426454,600.00,,East Kent College,EAS018,Community Services,Revenue,Services,Education
http://statistics.data.gov.uk/search?search=E07000114,Thanet District Council,28/02/2017,426162,900.00,,East Kent Hose,EKH004,Operational Services,Revenue,Direct Transport Costs,Vehicle Management
http://statistics.data.gov.uk/search?search=E07000114,Thanet District Council,28/02/2017,425884,3731.60,,Egbert H Taylor & Company Ltd,TAY005,Operational Services,Revenue,"Equip, Furniture And Materials",Environmental Services
http://statistics.data.gov.uk/search?search=E07000114,Thanet District Council,28/02/2017,426307,803.34,,Elec-Sec Ltd,ELE014,Corporate Governance,Revenue,"Repairs,  Alter & Mtce - Build",Building Construction Material
http://statistics.data.gov.uk/search?search=E07000114,Thanet District Council,28/02/2017,426945,2222.44,,Electoral Reform Services,ELE010,Corporate Governance,Revenue,"Print, Stat And Gen Off Exps",Facilities And Management Serv
http://statistics.data.gov.uk/search?search=E07000114,Thanet District Council,28/02/2017,426751,630.38,,Evergreen Landscaping Gardening Ltd,EVE004,Corporate Governance,Revenue,Grounds Mtce Costs,Horticultural
http://statistics.data.gov.uk/search?search=E07000114,Thanet District Council,28/02/2017,426952,930.98,,Family Mosaic Housing,FAM001,Corporate Resources and S151,Balance Sheet,Capital Exp-Non Council Assets,Housing Management
http://statistics.data.gov.uk/search?search=E07000114,Thanet District Council,28/02/2017,426448,605.32,,Farrer Barnes Limited,FAR012,Corporate Resources and S151,Revenue,Agency Staff,Human Resources
http://statistics.data.gov.uk/search?search=E07000114,Thanet District Council,28/02/2017,426449,605.32,,Farrer Barnes Limited,FAR012,Corporate Resources and S151,Revenue,Agency Staff,Human Resources
http://statistics.data.gov.uk/search?search=E07000114,Thanet District Council,28/02/2017,426450,604.95,,Farrer Barnes Limited,FAR012,Corporate Resources and S151,Revenue,Agency Staff,Human Resources
http://statistics.data.gov.uk/search?search=E07000114,Thanet District Council,28/02/2017,426211,270.00,,Florence Court Hotel,FLO003,Community Services,Revenue,Services,Housing Management
http://statistics.data.gov.uk/search?search=E07000114,Thanet District Council,28/02/2017,426212,330.00,,Florence Court Hotel,FLO003,Community Services,Revenue,Services,Housing Management
http://statistics.data.gov.uk/search?search=E07000114,Thanet District Council,28/02/2017,426214,750.00,,Florence Court Hotel,FLO003,Community Services,Revenue,Services,Housing Management
http://statistics.data.gov.uk/search?search=E07000114,Thanet District Council,28/02/2017,426215,1085.00,,Florence Court Hotel,FLO003,Community Services,Revenue,Services,Housing Management
http://statistics.data.gov.uk/search?search=E07000114,Thanet District Council,28/02/2017,426216,1085.00,,Florence Court Hotel,FLO003,Community Services,Revenue,Services,Housing Management
http://statistics.data.gov.uk/search?search=E07000114,Thanet District Council,28/02/2017,426217,930.00,,Florence Court Hotel,FLO003,Community Services,Revenue,Services,Housing Management
http://statistics.data.gov.uk/search?search=E07000114,Thanet District Council,28/02/2017,426218,930.00,,Florence Court Hotel,FLO003,Community Services,Revenue,Services,Housing Management
http://statistics.data.gov.uk/search?search=E07000114,Thanet District Council,28/02/2017,426219,1085.00,,Florence Court Hotel,FLO003,Community Services,Revenue,Services,Housing Management
http://statistics.data.gov.uk/search?search=E07000114,Thanet District Council,28/02/2017,425837,1300.00,,Freeflow Limited,FRE010,Community Services,Revenue,"Repairs,  Alter & Mtce - Build",Building Construction Material
http://statistics.data.gov.uk/search?search=E07000114,Thanet District Council,28/02/2017,425950,396.00,,Gulliver'S Truck Hire Limited,GUL001,Operational Services,Revenue,Cont Hire & Operating Lease,Vehicle Management
http://statistics.data.gov.uk/search?search=E07000114,Thanet District Council,28/02/2017,426236,252.32,,H E Municipal Engineering Ltd,HEM003,Operational Services,Revenue,Direct Transport Costs,Vehicle Management
http://statistics.data.gov.uk/search?search=E07000114,Thanet District Council,28/02/2017,426944,2466.00,,Hardman & Watson Limited,HAR076,Corporate Resources and S151,Balance Sheet,Council Dwellings,Legal Services
http://statistics.data.gov.uk/search?search=E07000114,Thanet District Council,28/02/2017,426292,3000.00,,Hays Specialist Recruitment Ltd,HAY020,Corporate Resources and S151,Revenue,Services,Human Resources
http://statistics.data.gov.uk/search?search=E07000114,Thanet District Council,28/02/2017,426153,1604.40,,Hi Way Services Ltd,HIW002,Operational Services,Revenue,"Repairs,  Alter & Mtce - Build",Highway Equipment And Material
http://statistics.data.gov.uk/search?search=E07000114,Thanet District Council,28/02/2017,425955,448.88,,Hr Go (Kent) Ltd,HRG001,Operational Services,Revenue,Agency Staff,Human Resources
http://statistics.data.gov.uk/search?search=E07000114,Thanet District Council,28/02/2017,425957,1341.62,,Hr Go (Kent) Ltd,HRG001,Operational Services,Revenue,Agency Staff,Human Resources
http://statistics.data.gov.uk/search?search=E07000114,Thanet District Council,28/02/2017,425958,1091.50,,Hr Go (Kent) Ltd,HRG001,Operational Services,Revenue,Agency Staff,Human Resources
http://statistics.data.gov.uk/search?search=E07000114,Thanet District Council,28/02/2017,425959,1091.50,,Hr Go (Kent) Ltd,HRG001,Operational Services,Revenue,Agency Staff,Human Resources
http://statistics.data.gov.uk/search?search=E07000114,Thanet District Council,28/02/2017,425986,9818.87,,Hr Go (Kent) Ltd,HRG001,Operational Services,Revenue,Agency Staff,Human Resources
http://statistics.data.gov.uk/search?search=E07000114,Thanet District Council,28/02/2017,426313,1091.50,,Hr Go (Kent) Ltd,HRG001,Operational Services,Revenue,Agency Staff,Human Resources
http://statistics.data.gov.uk/search?search=E07000114,Thanet District Council,28/02/2017,426314,529.47,,Hr Go (Kent) Ltd,HRG001,Community Services,Revenue,Agency Staff,Human Resources
http://statistics.data.gov.uk/search?search=E07000114,Thanet District Council,28/02/2017,426315,401.08,,Hr Go (Kent) Ltd,HRG001,Operational Services,Revenue,Agency Staff,Human Resources
http://statistics.data.gov.uk/search?search=E07000114,Thanet District Council,28/02/2017,426316,532.67,,Hr Go (Kent) Ltd,HRG001,Operational Services,Revenue,Agency Staff,Human Resources
http://statistics.data.gov.uk/search?search=E07000114,Thanet District Council,28/02/2017,426318,1091.50,,Hr Go (Kent) Ltd,HRG001,Operational Services,Revenue,Agency Staff,Human Resources
http://statistics.data.gov.uk/search?search=E07000114,Thanet District Council,28/02/2017,426319,1341.62,,Hr Go (Kent) Ltd,HRG001,Operational Services,Revenue,Agency Staff,Human Resources
http://statistics.data.gov.uk/search?search=E07000114,Thanet District Council,28/02/2017,426320,219.45,,Hr Go (Kent) Ltd,HRG001,Corporate Governance,Revenue,Agency Staff,Human Resources
http://statistics.data.gov.uk/search?search=E07000114,Thanet District Council,28/02/2017,426321,742.12,,Hr Go (Kent) Ltd,HRG001,Operational Services,Revenue,Agency Staff,Human Resources
http://statistics.data.gov.uk/search?search=E07000114,Thanet District Council,28/02/2017,426647,9901.81,,Hr Go (Kent) Ltd,HRG001,Operational Services,Revenue,Agency Staff,Human Resources
http://statistics.data.gov.uk/search?search=E07000114,Thanet District Council,28/02/2017,426864,529.47,,Hr Go (Kent) Ltd,HRG001,Community Services,Revenue,Agency Staff,Human Resources
http://statistics.data.gov.uk/search?search=E07000114,Thanet District Council,28/02/2017,426149,212.00,,Hydrosphere Uk Limited,HYD009,Operational Services,Revenue,"Equip, Furniture And Materials",Vehicle Management
http://statistics.data.gov.uk/search?search=E07000114,Thanet District Council,28/02/2017,426281,415.64,,Insight Direct (Uk) Ltd,INS013,East Kent Shared Services,Revenue,Communications & Computing,ICT
http://statistics.data.gov.uk/search?search=E07000114,Thanet District Council,28/02/2017,426177,1276.66,,J W Fluid Power,JWF001,Corporate Resources and S151,Balance Sheet,Plant And Equipment,Consultancy
http://statistics.data.gov.uk/search?search=E07000114,Thanet District Council,28/02/2017,425996,570.00,,Kent County Council,KCC002,East Kent Shared Services,Revenue,Training,Various Cats-Public Sector
http://statistics.data.gov.uk/search?search=E07000114,Thanet District Council,28/02/2017,426184,10568.46,,Kent County Council (Kcs),KCC003,Operational Services,Revenue,Energy Costs,Facilities And Management Serv
http://statistics.data.gov.uk/search?search=E07000114,Thanet District Council,28/02/2017,426185,10222.73,,Kent County Council (Kcs),KCC003,Community Services,Revenue,Energy Costs,Facilities And Management Serv
http://statistics.data.gov.uk/search?search=E07000114,Thanet District Council,28/02/2017,426186,8294.08,,Kent County Council (Kcs),KCC003,Corporate Governance,Revenue,Energy Costs,Facilities And Management Serv
http://statistics.data.gov.uk/search?search=E07000114,Thanet District Council,28/02/2017,426187,6865.30,,Kent County Council (Kcs),KCC003,Operational Services,Revenue,Energy Costs,Facilities And Management Serv
http://statistics.data.gov.uk/search?search=E07000114,Thanet District Council,28/02/2017,426288,515.20,,Kent Police & Crime Commissioner,KPC002,Community Services,Revenue,Services,Facilities And Management Serv
http://statistics.data.gov.uk/search?search=E07000114,Thanet District Council,28/02/2017,426415,255.00,,Killgerm Chemicals Limited,KIL001,Operational Services,Revenue,"Equip, Furniture And Materials",Horticultural
http://statistics.data.gov.uk/search?search=E07000114,Thanet District Council,28/02/2017,426614,581.70,,Loomis Uk Ltd,LOO002,Operational Services,Revenue,Services,Financial Services
http://statistics.data.gov.uk/search?search=E07000114,Thanet District Council,28/02/2017,426293,440.00,,Lyreco Uk Limited,LYR001,Corporate Governance,Revenue,"Print, Stat And Gen Off Exps",Stationery
http://statistics.data.gov.uk/search?search=E07000114,Thanet District Council,28/02/2017,426310,3950.00,,Mag:Net Solutions Limited,MAG005,East Kent Shared Services,Revenue,Services,ICT
http://statistics.data.gov.uk/search?search=E07000114,Thanet District Council,28/02/2017,425897,526.37,,Mears Ltd,MEA003,Operational Services,Revenue,"Repairs,  Alter & Mtce - Build",Construction-Repair And Maint
http://statistics.data.gov.uk/search?search=E07000114,Thanet District Council,28/02/2017,426333,515.91,,Mears Ltd,MEA003,Corporate Resources and S151,Balance Sheet,Repairs And Mtce Holding A/C,Construction-Repair And Maint
http://statistics.data.gov.uk/search?search=E07000114,Thanet District Council,28/02/2017,426334,30615.18,,Mears Ltd,MEA003,Corporate Resources and S151,Balance Sheet,Repairs And Mtce Holding A/C,Construction-Repair And Maint
http://statistics.data.gov.uk/search?search=E07000114,Thanet District Council,28/02/2017,426335,9187.09,,Mears Ltd,MEA003,Corporate Resources and S151,Balance Sheet,Repairs And Mtce Holding A/C,Construction-Repair And Maint
http://statistics.data.gov.uk/search?search=E07000114,Thanet District Council,28/02/2017,426336,15248.61,,Mears Ltd,MEA003,Corporate Resources and S151,Balance Sheet,Repairs And Mtce Holding A/C,Construction-Repair And Maint
http://statistics.data.gov.uk/search?search=E07000114,Thanet District Council,28/02/2017,426337,12581.42,,Mears Ltd,MEA003,Corporate Resources and S151,Balance Sheet,Repairs And Mtce Holding A/C,Construction-Repair And Maint
http://statistics.data.gov.uk/search?search=E07000114,Thanet District Council,28/02/2017,426338,28740.17,,Mears Ltd,MEA003,Corporate Resources and S151,Balance Sheet,Repairs And Mtce Holding A/C,Construction-Repair And Maint
http://statistics.data.gov.uk/search?search=E07000114,Thanet District Council,28/02/2017,426339,1939.99,,Mears Ltd,MEA003,Operational Services,Revenue,"Repairs,  Alter & Mtce - Build",Construction-Repair And Maint
http://statistics.data.gov.uk/search?search=E07000114,Thanet District Council,28/02/2017,426340,8149.84,,Mears Ltd,MEA003,Corporate Resources and S151,Balance Sheet,Repairs And Mtce Holding A/C,Construction-Repair And Maint
http://statistics.data.gov.uk/search?search=E07000114,Thanet District Council,28/02/2017,426341,705.72,,Mears Ltd,MEA003,Corporate Resources and S151,Balance Sheet,Repairs And Mtce Holding A/C,Construction-Repair And Maint
http://statistics.data.gov.uk/search?search=E07000114,Thanet District Council,28/02/2017,426455,419.19,,Mears Ltd,MEA003,Corporate Governance,Revenue,"Repairs,  Alter & Mtce - Build",Construction-Repair And Maint
http://statistics.data.gov.uk/search?search=E07000114,Thanet District Council,28/02/2017,426455,908.84,,Mears Ltd,MEA003,Operational Services,Revenue,"Repairs,  Alter & Mtce - Build",Construction-Repair And Maint
http://statistics.data.gov.uk/search?search=E07000114,Thanet District Council,28/02/2017,426456,1805.71,,Mears Ltd,MEA003,Community Services,Revenue,"Repairs,  Alter & Mtce - Build",Construction-Repair And Maint
http://statistics.data.gov.uk/search?search=E07000114,Thanet District Council,28/02/2017,426457,2766.33,,Mears Ltd,MEA003,Community Services,Revenue,"Repairs,  Alter & Mtce - Build",Construction-Repair And Maint
http://statistics.data.gov.uk/search?search=E07000114,Thanet District Council,28/02/2017,426458,97706.27,,Mears Ltd,MEA003,Community Services,Revenue,"Repairs,  Alter & Mtce - Build",Construction-Repair And Maint
http://statistics.data.gov.uk/search?search=E07000114,Thanet District Council,28/02/2017,426386,1995.00,,Metric Group Ltd,MET001,Operational Services,Revenue,"Equip, Furniture And Materials",Street And Traffic Management
http://statistics.data.gov.uk/search?search=E07000114,Thanet District Council,28/02/2017,426844,600.00,,Michael Page Int Recruitment Ltd,PAG008,Corporate Resources and S151,Revenue,Services,Human Resources
http://statistics.data.gov.uk/search?search=E07000114,Thanet District Council,28/02/2017,426947,4302.72,,Mitchell & Co Uk Ltd,MIT008,Corporate Resources and S151,Balance Sheet,Capital Exp-Non Council Assets,Grants
http://statistics.data.gov.uk/search?search=E07000114,Thanet District Council,28/02/2017,426462,975.00,,Modus Film Productions Limited,MOD005,Community Services,Revenue,Services,Facilities And Management Serv
http://statistics.data.gov.uk/search?search=E07000114,Thanet District Council,28/02/2017,426181,299.20,,Morgan Jones Ltd,MOR001,Corporate Governance,Revenue,Agency Staff,Human Resources
http://statistics.data.gov.uk/search?search=E07000114,Thanet District Council,28/02/2017,426205,579.70,,Morgan Jones Ltd,MOR001,Corporate Governance,Revenue,Agency Staff,Human Resources
http://statistics.data.gov.uk/search?search=E07000114,Thanet District Council,28/02/2017,426749,640.84,,Morgan Jones Ltd,MOR001,Chief Executive,Revenue,Agency Staff,Human Resources
http://statistics.data.gov.uk/search?search=E07000114,Thanet District Council,28/02/2017,426615,1675.19,,Network Rail,RAI002,Operational Services,Revenue,Rents,Financial Services
http://statistics.data.gov.uk/search?search=E07000114,Thanet District Council,28/02/2017,426304,869.85,,Ohuk Limited,OHU001,Operational Services,Revenue,Agency Staff,Human Resources
http://statistics.data.gov.uk/search?search=E07000114,Thanet District Council,28/02/2017,426227,5885.99,,Oracle Corporation Uk Ltd,ORA001,East Kent Shared Services,Revenue,Communications & Computing,ICT
http://statistics.data.gov.uk/search?search=E07000114,Thanet District Council,28/02/2017,425995,3407.49,,Ovenden Allworks Limited,OVE008,Operational Services,Revenue,"Repairs,  Alter & Mtce - Build",Construction-Repair And Maint
http://statistics.data.gov.uk/search?search=E07000114,Thanet District Council,28/02/2017,426039,66755.00,,Paramount Ind Property Services Llp,PAR074,Community Services,Revenue,Services,Housing Management
http://statistics.data.gov.uk/search?search=E07000114,Thanet District Council,28/02/2017,426954,5531.00,,Park Insurance Services,PAR066,Corporate Resources and S151,Balance Sheet,Insurance Holding Account,Financial Services
http://statistics.data.gov.uk/search?search=E07000114,Thanet District Council,28/02/2017,426610,400.00,,Penna Plc,PEN008,Corporate Resources and S151,Revenue,Advertising Expenses,Human Resources
http://statistics.data.gov.uk/search?search=E07000114,Thanet District Council,28/02/2017,426195,252.00,,Photesque,PHO011,Community Services,Revenue,Services,Facilities And Management Serv
http://statistics.data.gov.uk/search?search=E07000114,Thanet District Council,28/02/2017,426708,583.28,,Powermain Ltd,POW001,Operational Services,Revenue,"Repairs,  Alter & Mtce - Build",Building Construction Material
http://statistics.data.gov.uk/search?search=E07000114,Thanet District Council,28/02/2017,426413,10250.00,,Probrand Ltd,PRO012,Corporate Resources and S151,Revenue,Communications & Computing,ICT
http://statistics.data.gov.uk/search?search=E07000114,Thanet District Council,28/02/2017,426413,10250.00,,Probrand Ltd,PRO012,East Kent Shared Services,Revenue,Communications & Computing,ICT
http://statistics.data.gov.uk/search?search=E07000114,Thanet District Council,28/02/2017,427014,770.00,,Prospects Assured Uk Ltd,PRO032,Community Services,Revenue,Grants & Subscriptions,Rent Deposits
http://statistics.data.gov.uk/search?search=E07000114,Thanet District Council,28/02/2017,426204,420.00,,R Cannon,CAN007,Operational Services,Revenue,Services,Maritime Services
http://statistics.data.gov.uk/search?search=E07000114,Thanet District Council,28/02/2017,426948,1514.76,,Regency Properties,REG004,Community Services,Revenue,Grants & Subscriptions,Rent Deposits
http://statistics.data.gov.uk/search?search=E07000114,Thanet District Council,28/02/2017,426369,402.83,,Royal Mail,ROY004,Corporate Governance,Revenue,Communications & Computing,Mail Services
http://statistics.data.gov.uk/search?search=E07000114,Thanet District Council,28/02/2017,426207,387.50,,Safety & Management Solutions Ltd,SAF013,Operational Services,Revenue,Training,Health And Safety
http://statistics.data.gov.uk/search?search=E07000114,Thanet District Council,28/02/2017,426752,3037.50,,Securitas Security Services (Uk) Ltd,SEC019,Corporate Governance,Revenue,Services,Facilities And Management Serv
http://statistics.data.gov.uk/search?search=E07000114,Thanet District Council,28/02/2017,426994,16570.78,,Sharpe Pritchard Llp,SHA030,Corporate Resources and S151,Balance Sheet,Other Land And Buildings-Hra,Legal Services
http://statistics.data.gov.uk/search?search=E07000114,Thanet District Council,28/02/2017,425835,735.00,,Southeast Retail Ltd,SOU030,Community Services,Revenue,Services,Housing Management
http://statistics.data.gov.uk/search?search=E07000114,Thanet District Council,28/02/2017,426232,735.00,,Southeast Retail Ltd,SOU030,Community Services,Revenue,Services,Housing Management
http://statistics.data.gov.uk/search?search=E07000114,Thanet District Council,28/02/2017,426621,735.00,,Southeast Retail Ltd,SOU030,Community Services,Revenue,Services,Housing Management
http://statistics.data.gov.uk/search?search=E07000114,Thanet District Council,28/02/2017,426789,267.98,,Southern Electric,SEL007,Community Services,Revenue,Energy Costs,Utilities
http://statistics.data.gov.uk/search?search=E07000114,Thanet District Council,28/02/2017,426790,4690.34,,Southern Electric,SEL007,Community Services,Revenue,Energy Costs,Utilities
http://statistics.data.gov.uk/search?search=E07000114,Thanet District Council,28/02/2017,426805,308.07,,Southern Electric,SEL007,Community Services,Revenue,Energy Costs,Utilities
http://statistics.data.gov.uk/search?search=E07000114,Thanet District Council,28/02/2017,426809,2153.58,,Southern Electric,SEL007,Community Services,Revenue,Energy Costs,Utilities
http://statistics.data.gov.uk/search?search=E07000114,Thanet District Council,28/02/2017,426812,2507.10,,Southern Electric,SEL007,Community Services,Revenue,Energy Costs,Utilities
http://statistics.data.gov.uk/search?search=E07000114,Thanet District Council,28/02/2017,426891,2319.60,,Southern Electric,SEL007,Community Services,Revenue,Energy Costs,Utilities
http://statistics.data.gov.uk/search?search=E07000114,Thanet District Council,28/02/2017,426892,1721.66,,Southern Electric,SEL007,Community Services,Revenue,Energy Costs,Utilities
http://statistics.data.gov.uk/search?search=E07000114,Thanet District Council,28/02/2017,426893,2913.53,,Southern Electric,SEL007,Community Services,Revenue,Energy Costs,Utilities
http://statistics.data.gov.uk/search?search=E07000114,Thanet District Council,28/02/2017,426437,943.49,,Southern Water,SWA001,Operational Services,Revenue,Water Services,Utilities
http://statistics.data.gov.uk/search?search=E07000114,Thanet District Council,28/02/2017,425997,508.53,,Tennants Distribution Limited,TEN005,Operational Services,Revenue,Direct Transport Costs,Vehicle Management
http://statistics.data.gov.uk/search?search=E07000114,Thanet District Council,28/02/2017,426302,1020.00,,The Generation Group Enterprises Ltd,GEN012,Community Services,Revenue,Rents,Facilities And Management Serv
http://statistics.data.gov.uk/search?search=E07000114,Thanet District Council,28/02/2017,426140,3354.17,,The Glenwood Hotel,GLE007,Community Services,Revenue,Services,Housing Management
http://statistics.data.gov.uk/search?search=E07000114,Thanet District Council,28/02/2017,426141,2741.68,,The Glenwood Hotel,GLE007,Community Services,Revenue,Services,Housing Management
http://statistics.data.gov.uk/search?search=E07000114,Thanet District Council,28/02/2017,426142,3129.18,,The Glenwood Hotel,GLE007,Community Services,Revenue,Services,Housing Management
http://statistics.data.gov.uk/search?search=E07000114,Thanet District Council,28/02/2017,426143,2062.50,,The Glenwood Hotel,GLE007,Community Services,Revenue,Services,Housing Management
http://statistics.data.gov.uk/search?search=E07000114,Thanet District Council,28/02/2017,426640,3083.34,,The Glenwood Hotel,GLE007,Community Services,Revenue,Services,Housing Management
http://statistics.data.gov.uk/search?search=E07000114,Thanet District Council,28/02/2017,426641,2112.50,,The Glenwood Hotel,GLE007,Community Services,Revenue,Services,Housing Management
http://statistics.data.gov.uk/search?search=E07000114,Thanet District Council,28/02/2017,426642,3170.85,,The Glenwood Hotel,GLE007,Community Services,Revenue,Services,Housing Management
http://statistics.data.gov.uk/search?search=E07000114,Thanet District Council,28/02/2017,426643,2975.01,,The Glenwood Hotel,GLE007,Community Services,Revenue,Services,Housing Management
http://statistics.data.gov.uk/search?search=E07000114,Thanet District Council,28/02/2017,425390,1630.21,,The Grand Garage,GRA016,Operational Services,Revenue,Direct Transport Costs,Vehicle Management
http://statistics.data.gov.uk/search?search=E07000114,Thanet District Council,28/02/2017,426995,350.00,,Thompsons Solicitors Llp,THO046,Community Services,Revenue,Services,Legal Services
http://statistics.data.gov.uk/search?search=E07000114,Thanet District Council,28/02/2017,426178,333.00,,Trinity Resource Centre Limited,TRI018,Community Services,Revenue,Services,Facilities And Management Serv
http://statistics.data.gov.uk/search?search=E07000114,Thanet District Council,28/02/2017,426301,545.00,,W Brazil & Bros,BRA001,Operational Services,Revenue,Grounds Mtce Costs,Environmental Services
http://statistics.data.gov.uk/search?search=E07000114,Thanet District Council,28/02/2017,426350,648.20,,Walker Construction (Uk) Ltd,WAL001,Operational Services,Revenue,Training,Construction-Repair And Maint
http://statistics.data.gov.uk/search?search=E07000114,Thanet District Council,28/02/2017,426351,1000.00,,Walker Construction (Uk) Ltd,WAL001,Operational Services,Revenue,Training,Construction-Repair And Maint
http://statistics.data.gov.uk/search?search=E07000114,Thanet District Council,28/02/2017,425846,7866.00,,Weir & Carmichael Limited,WEI004,Operational Services,Revenue,"Equip, Furniture And Materials",Environmental Services
